Cogmind - Beta 12 @@@ ROGUE MODE // 2023.09.16 @ 20:12:36 Player: lyrabold Result: Destroyed by Combat Programmer with EMDS Performance ------------- Evolutions (9) 4500 Regions Visited (35) 7000 Robots Destroyed (718) 3590 Value Destroyed (33901) 33901 Prototype IDs (78) 1560 Alien Tech Used (4) 800 Bonus (17111) 17111 TOTAL SCORE: 68462 Bonus ------- Triggered High Security 1000 High Alert Combat Kills 8484 Follower Combat Kills 2630 Entered Garrisons 200 Network Hubs Disabled 400 Met Zhirov 300 Met Warlord at Base 500 MAIN.C Attacked Warlord 500 Warlord Defense Kills 1184 Built Enhanced Grunts 300 Found Hidden Lab 3000 Met MAIN.C 5000 Friendly Fire -6387 Cogmind --------- Core Integrity 0/1600 Matter 270/300 Energy 100/100 System Corruption 46% Temperature Warning (358) Movement Core (350) Ox6 Location -1/Command Parts ------- > --- POWER (3) -------- (None) > --- PROPULSION (7) --- (None) > --- UTILITY (10) ----- Large Storage Unit Experimental Targeting Computer Experimental Cloaking Device (fused) Deep Network Scanner > --- WEAPON (6) ------- (None) > --- INVENTORY (15) --- Experimental Matter Compressor (500) Long-range Tractor Beam Advanced Variable Charge Gun EMDS Peak State ------------ > --- POWER ------------ Light Antimatter Reactor Micro Antimatter Reactor Improved Quantum Reactor > --- PROPULSION ------- Biometal Leg Enhanced Biometal Leg Enhanced Biometal Leg Enhanced Biometal Leg Centrium Leg Centrium Leg Centrium Leg > --- UTILITY ---------- Coolant Network Huge Storage Unit Experimental Sensor Array Experimental Targeting Computer Experimental Core Analyzer Advanced Kinecellerator Experimental Cloaking Device Centrium Medium Armor Plating Deep Network Scanner > --- WEAPON ----------- Modified EM Gauss Rifle Quantum Rifle KE Penetrator Helical Railgun Helical Railgun Gamma Bomb Array > --- INVENTORY -------- Light Antimatter Reactor Advanced Energy Well Improved Matter Compressor Improved Heavy Armor Plating Experimental Powered Armor Experimental EM Disruption Field Advanced Force Field Advanced Component Analysis Suite Long-range Tractor Beam Mini Drone Bay Transdimensional Reconstructor Core Regenerator Core Reset Matrix EMDS BFG-9k Vortex Edition RU-N14's Throwing Claymores v3 [Rating: 240] Favorites ----------- Power Neutrino Core Engine Heavy Ion Engine Power Core Neutrino Core Reactor Vortex Chain Reactor Propulsion Enhanced Biometal Leg Treads Medium Treads Leg Enhanced Biometal Leg Wheel Armored Huge Wheel Hover Unit Cooled Gravmag System Flight Unit Improved Flight Unit Utility Huge Storage Unit Device Experimental Sensor Array Storage Huge Storage Unit Processor Experimental Targeting Computer Hackware Improved Hacking Suite Protection Centrium Medium Armor Plating Weapon Improved EM Pulse Cannon Energy Gun Improved Medium Laser Energy Cannon Improved EM Pulse Cannon Ballistic Gun Enhanced Coil Gun Ballistic Cannon Mini Assault Cannon Launcher Gamma Bomb Array Special Weapon RU-N14's Throwing Claymores v3 Impact Weapon Great Maul Slashing Weapon Greatsword Special Melee Weapon Datajack Build | -11 -10 -10 -9 -9 -9 -8 -8 -8 -8 -7 -7 -7 -7 -6 -6 -6 -6 -6 -6 -5 -5 -5 -5 -4 -4 -4 -4 -4 -3 -3 -3 -3 -2 -1 -1 ------- Run | Jun Mat Min Mat Min Exi Min Mat Gar Mat Fac Low Low Zio Pro Fac Ext Cet Arc Hub Fac Upp Upp War Pro Fac Upp Upp Zhi Pro Res Arm Lab Res Acc Com Slots Evolved 18 | . . . 2 . . . 2 . . 2 . . . . 2 . . . . 2 . . . . 2 . . . . 2 . . 2 2 . Power 2 | . . . . . . . . . . . . . . . 1 . . . . . . . . . . . . . . . . . 1 . . Propulsion 4 | . . . 1 . . . 1 . . 1 . . . . . . . . . . . . . . 1 . . . . . . . . . . Utility 8 | . . . 1 . . . 1 . . 1 . . . . 1 . . . . 1 . . . . 1 . . . . 2 . . . . . Weapon 4 | . . . . . . . . . . . . . . . . . . . . 1 . . . . . . . . . . . . 1 2 . Parts Attached 914 | 7 17 1 31 2 2 7 25 25 53 63 17 26 9 21 64 22 9 6 43 67 24 10 53 8 19 5 16 9 15 45 59 14 39 45 36 Power 38 | 1 2 . 2 . . . 1 1 5 . . . . . 4 1 . . 2 3 . 1 1 . . . . 2 . . 2 . 3 5 2 Engine 11 | 1 2 . 2 . . . 1 1 2 . . . . . . . . . . . . 1 . . . . . . . . . . . . 1 Core 10 | . . . . . . . . . 3 . . . . . 1 1 . . 2 3 . . . . . . . . . . . . . . . Reactor 17 | . . . . . . . . . . . . . . . 3 . . . . . . . 1 . . . . 2 . . 2 . 3 5 1 Propulsion 113 | 2 4 . 9 . . 2 7 2 13 9 3 . . 1 13 5 . . 6 2 3 1 2 . 3 1 . 2 . 1 5 1 8 3 5 Treads 39 | 2 4 . 8 . . 2 5 2 5 8 3 . . . . . . . . . . . . . . . . . . . . . . . . Leg 68 | . . . . . . . . . 6 1 . . . 1 13 5 . . 6 2 3 1 2 . 3 1 . 1 . 1 5 1 8 3 5 Wheel 4 | . . . . . . . 2 . 2 . . . . . . . . . . . . . . . . . . . . . . . . . . Hover 1 | . . . . . . . . . . . . . . . . . . . . . . . . . . . . 1 . . . . . . . Flight 1 | . . . 1 . . . . . . . . . . . . . . . . . . . . . . . . . . . . . . . . Utility 463 | 2 5 1 5 2 . 2 4 12 19 24 9 13 5 10 24 8 5 3 25 44 14 3 26 4 15 1 11 5 15 36 47 5 20 25 14 Device 309 | 1 3 1 5 2 . 1 3 9 13 11 5 12 3 9 9 6 4 2 8 30 8 2 11 2 13 1 10 2 12 27 38 3 14 19 10 Storage 13 | 1 2 . . . . . . . 1 . . . . . . . . . 1 . . . 2 . . . . 1 . 2 . . . . 3 Processor 16 | . . . . . . . . . . . 1 . 2 . 3 . . . 1 4 . . 1 . . . . . . . 1 . 2 1 . Hackware 15 | . . . . . . . . 1 1 2 . . . . 4 1 . 1 2 . . . . . . . . . . 1 1 . . 1 . Protection 110 | . . . . . . 1 1 2 4 11 3 1 . 1 8 1 1 . 13 10 6 1 12 2 2 . 1 2 3 6 7 2 4 4 1 Artifact . | . . . . . . . . . . . . . . . . . . . . . . . . . . . . . . . . . . . . Weapon 300 | 2 6 . 15 . 2 3 13 10 16 30 5 13 4 10 23 8 4 3 10 18 7 5 24 4 1 3 5 . . 8 5 8 8 12 15 Energy Gun 62 | 2 5 . 9 . 2 2 6 . 1 . 1 . . . 6 . . . . 3 . . . . . . . . . . 1 3 3 9 9 Energy Cannon 84 | . . . 2 . . . 2 . 4 16 3 7 3 5 2 . . . 3 7 3 2 8 . . . 1 . . 5 2 5 . 1 3 Ballistic Gun 24 | . . . . . . . . 2 3 . . . . . 3 1 1 . 3 . . . 4 . . . 4 . . . . . 3 . . Ballistic Cannon 51 | . . . 1 . . . 3 5 2 8 . 2 . . 3 4 2 2 3 4 2 1 4 2 . 2 . . . 1 . . . . . Launcher 35 | . . . 3 . . 1 2 . 6 1 . 2 . 4 2 . . . . 2 2 2 1 2 . 1 . . . . 1 . . 2 1 Special Weapon 19 | . . . . . . . . . . . . . 1 . 4 . . . . 2 . . 5 . 1 . . . . 1 1 . 2 . 2 Impact Weapon 3 | . 1 . . . . . . . . . . . . . . 1 . . . . . . 1 . . . . . . . . . . . . Slashing Weapon 21 | . . . . . . . . 2 . 5 1 2 . 1 3 2 1 1 1 . . . 1 . . . . . . 1 . . . . . Piercing Weapon . | . . . . . . . . . . . . . . . . . . . . . . . . . . . . . . . . . . . . Special Melee Weapon 1 | . . . . . . . . 1 . . . . . . . . . . . . . . . . . . . . . . . . . . . Unidentified Prototypes 45 | . . . 3 1 . . 1 . . . . . 1 1 2 . 2 . 9 . . . 8 . . . . 5 . 1 3 3 2 1 2 Corrupted Parts 6 | . . . . . . . . . . . . . . . . . . . 4 . . . . . . . . . . . . . . . 2 System Corruption 56 | . . . . . . . . . . . . . . . . . . . 36 . . . . . . . . . . . . . . . 20 Parts Lost 107 | . 3 . 2 . . 5 6 3 14 3 . 1 . . 10 3 . . 7 3 1 5 . . . . . . 1 . 1 . 4 9 26 Power 17 | . 2 . 1 . . . . . 2 . . . . . . . . . 2 1 . 2 . . . . . . . . . . 1 2 4 Propulsion 30 | . 1 . . . . 2 4 . 4 . . . . . 4 1 . . 2 . 1 1 . . . . . . . . . . 1 1 8 Utility 41 | . . . 1 . . 2 2 1 4 2 . 1 . . 5 2 . . 2 2 . 1 . . . . . . 1 . 1 . 2 5 7 Weapon 19 | . . . . . . 1 . 2 4 1 . . . . 1 . . . 1 . . 1 . . . . . . . . . . . 1 7 Highest Loss Streak 16 | . 1 . 1 . . 2 2 2 7 1 . 1 . . 5 2 . . 7 1 1 3 . . . . . . 1 . 1 . 2 4 16 To Critical Strikes 1 | . . . . . . . . . . . . . . . . . . . . . . . . . . . . . . . . . 1 . . Average Slot Usage (%) 95 | . 99 100 99 100 87 98 93 76 79 99 100 99 98 99 90 87 93 92 94 99 99 88 95 94 94 95 94 93 94 92 98 88 94 90 85 Engine 3 | . 14 14 10 11 11 11 9 9 7 . . . . . . . . . . . . 2 3 . . . . . . . . . . . 2 Core 2 | . . . . . . . . . 1 7 7 7 7 7 7 1 6 6 7 10 11 1 . . . . . . . . . . . . . Reactor 2 | . . . . . . . . . . . . . . . 4 6 6 6 2 . . . 2 5 5 5 5 4 5 4 7 9 11 10 6 Treads 17 | . 28 28 33 33 33 33 32 6 11 37 38 38 38 37 9 . . . . . . . . . . . . . . . . . . . . Leg 14 | . . . . . . . . . 3 . . . . 1 26 36 37 37 36 33 32 30 32 33 34 35 35 34 35 31 30 31 28 25 23 Device 14 | . 14 14 22 22 22 14 20 6 12 7 13 14 15 14 8 7 6 4 1 11 12 13 14 11 18 20 17 18 18 21 16 13 15 10 13 Storage 7 | . 14 14 11 11 11 11 9 9 9 7 7 7 7 7 6 6 6 6 6 5 5 5 5 5 5 5 5 5 5 4 4 4 4 3 3 Processor 5 | . . . . . . . . . . . 6 7 5 7 7 6 6 6 3 5 11 11 11 11 10 10 10 10 10 9 12 13 11 9 6 Hackware 1 | . . . . . . . . 2 . 7 . . . . . 3 6 7 11 3 . . . . . . . . . 2 4 3 . 2 3 Protection 6 | . . . . . . 6 3 13 12 13 8 7 7 7 6 6 6 6 11 10 8 5 6 9 6 5 7 5 6 5 5 8 5 3 2 Energy Gun 6 | . 27 28 20 22 10 21 13 . . . . . . . 3 . . . . . . . . . . . . . . . . . 7 15 14 Energy Cannon 5 | . . . . . . . 1 . 1 13 14 14 14 14 4 . . . 1 10 10 6 2 . . . 3 5 5 6 8 1 5 . 1 Ballistic Gun 1 | . . . . . . . . 1 3 . . . . . 2 1 . . 7 . . . . 11 10 10 5 5 5 4 3 . 2 3 . Ballistic Cannon 2 | . . . . . . . 2 12 7 . . . . . . 7 11 8 3 4 4 8 10 4 3 3 5 5 5 1 . . . . . Naked Turns . | . . . . . . . . . . . . . . . . . . . . . . . . . . . . . . . . . . . . Heaviest Build 195 | 12 90 90 97 97 97 98 119 127 127 124 124 124 122 122 138 128 132 128 134 153 152 146 169 165 168 161 167 170 171 177 177 172 195 187 181 Greatest Support 210 | 40 46 46 66 60 60 63 86 56 43 132 132 132 132 132 134 130 130 130 160 160 160 160 169 166 198 200 200 200 200 200 210 210 210 208 206 Greatest Overweight (x) 10 | . 2 1 1 1 1 1 4 4 10 6 . . . . 2 1 1 . . . 1 . 1 . . . . . . . 1 . . . 6 Average Overweight (x) . | . . 1 1 1 1 1 1 2 5 . . . . . . . . . . . . . . . . . . . . . . . . . . Largest Inventory Capacity 25 | 8 25 25 25 25 25 25 25 25 25 25 25 25 25 25 25 25 25 25 25 25 25 25 25 25 25 25 25 25 25 25 25 25 25 25 25 Average Capacity 24 | 7 19 25 25 25 25 25 25 25 25 25 25 25 25 25 25 25 25 25 25 25 25 25 25 25 25 25 25 25 25 25 25 25 25 25 24 Most Carried 25 | 6 25 25 25 25 25 25 25 25 25 25 25 25 25 25 25 25 25 25 25 25 25 25 25 25 25 25 25 25 25 25 25 25 25 25 25 Average Carried 24 | 3 17 24 24 25 25 23 24 24 24 24 25 24 24 24 24 24 24 24 24 24 24 24 24 25 24 24 25 24 24 24 24 19 24 24 23 Final Capacity 25 | 8 25 25 25 25 25 25 25 25 25 25 25 25 25 25 25 25 25 25 25 25 25 25 25 25 25 25 25 25 25 25 25 25 25 25 15 Final Carried 25 | 6 25 25 25 25 25 24 25 25 20 25 25 25 25 25 25 25 25 25 25 25 25 24 25 25 25 25 25 25 24 25 23 25 25 22 5 Class Distribution -------------------- 45% | Mutant 22% | Scavenger-Mutant 12% | Scavenger-Gunner 6% | Scavenger-Tank 5% | Derelict-Mutant 4% | Commander-Mutant Dominant Class ---------------- Mutant | -10/Materials Mutant | -10/Mines Mutant | -9/Materials Mutant | -9/Mines Mutant | -9/Exiles Mutant | -8/Mines Scavenger-Mutant | -8/Materials Mutant | -8/Garrison Scavenger-Mutant | -8/Materials Mutant | -7/Factory Mutant | -7/Lower Caves Mutant | -7/Lower Caves Mutant | -7/Zion Derelict-Mutant | -6/Proximity Caves Scavenger-Mutant | -6/Factory Commander-Mutant | -6/Extension Commander-Mutant | -6/Cetus Commander-Mutant | -6/Archives Hacker-Mutant | -6/Hub_04(d) Scavenger-Tank | -5/Factory Scavenger-Gunner | -5/Upper Caves Scavenger-Gunner | -5/Upper Caves Scavenger-Mutant | -5/Warlord Scavenger-Tank | -4/Proximity Caves Scavenger-Mutant | -4/Factory Scavenger-Gunner | -4/Upper Caves Scavenger-Gunner | -4/Upper Caves Scavenger-Gunner | -4/Zhirov Scavenger-Gunner | -3/Proximity Caves Scavenger-Mutant | -3/Research Scavenger-Mutant | -3/Armory Scavenger-Mutant | -3/Lab Scavenger-Gunner | -2/Research Scavenger-Executioner | -1/Access Scavenger-Mutant | -1/Command Resources | -11 -10 -10 -9 -9 -9 -8 -8 -8 -8 -7 -7 -7 -7 -6 -6 -6 -6 -6 -6 -5 -5 -5 -5 -4 -4 -4 -4 -4 -3 -3 -3 -3 -2 -1 -1 ----------- Run | Jun Mat Min Mat Min Exi Min Mat Gar Mat Fac Low Low Zio Pro Fac Ext Cet Arc Hub Fac Upp Upp War Pro Fac Upp Upp Zhi Pro Res Arm Lab Res Acc Com Matter Collected 18025 | 270 177 42 347 63 . 151 434 804 1108 802 247 427 92 316 896 707 122 116 931 1196 545 264 929 478 306 300 335 . 581 1253 789 215 1004 725 1053 Remotely 4704 | . . . . . . . 140 282 714 174 . 189 . 73 150 . 52 . 238 428 112 . 350 . . . . . . 492 246 . 505 271 288 Salvage Created 31640 | 215 891 78 1907 200 . 497 793 595 963 2116 1304 424 . 430 1794 928 41 301 1537 1868 582 763 279 502 604 187 291 . 412 1501 2026 . 3038 2902 1671 Parts 1359 | 15 45 1 99 9 . 19 44 26 56 93 33 20 . 25 76 42 1 21 61 84 22 29 11 27 17 6 14 . 16 63 84 . 117 124 59 Haulers Intercepted 18 | . 2 . 5 . . . 2 . 2 3 . . . . 1 . . . . 1 . . . . . . . . . 1 . . . 1 . Recyclers Shooed 28 | 1 . . 4 1 . . . . 2 5 . . . . 3 1 . . . 2 . . . . . . . . . 4 . . 2 1 2 Parts Field Recycled . | . . . . . . . . . . . . . . . . . . . . . . . . . . . . . . . . . . . . Retrieved Matter . | . . . . . . . . . . . . . . . . . . . . . . . . . . . . . . . . . . . . Parts Self-Destructed 122 | . . . . . . . . . . . 3 12 2 14 . . . . . . 18 21 . 23 . 1 12 . 16 . . . . . . Prevented 31 | . . . . . . . . . . . 20 6 . 4 . . . . . . 1 . . . . . . . . . . . . . . Kills | -11 -10 -10 -9 -9 -9 -8 -8 -8 -8 -7 -7 -7 -7 -6 -6 -6 -6 -6 -6 -5 -5 -5 -5 -4 -4 -4 -4 -4 -3 -3 -3 -3 -2 -1 -1 ------- Run | Jun Mat Min Mat Min Exi Min Mat Gar Mat Fac Low Low Zio Pro Fac Ext Cet Arc Hub Fac Upp Upp War Pro Fac Upp Upp Zhi Pro Res Arm Lab Res Acc Com Combat Hostiles Destroyed 564 | . 22 3 34 3 . 15 19 20 28 31 14 13 . 15 42 16 . . 16 37 17 16 8 13 12 5 5 . 8 19 32 . 51 36 14 Melee 12 | . 2 . . . . . . . . 1 . . . . . 8 . . . . . . . . . . . . . . 1 . . . . Guns 192 | . 19 3 27 3 . 12 7 . 4 . . . . . 13 . . . 16 . . . . 5 3 . 1 . 4 5 12 . 27 29 2 Cannons 168 | . . . 1 . . . 3 20 11 17 9 6 . 2 10 8 . . . 25 10 4 . . 3 . 4 . 4 6 12 . 10 . 3 AOE 154 | . . . 6 . . 3 7 . 13 7 2 6 . 11 17 . . . . 10 6 12 8 8 6 5 . . . 6 2 . 8 5 6 Classes Destroyed 27 | 3 4 1 6 . . 2 1 1 . 1 1 . . . 1 . . . . . . . 2 1 . . . . . . 1 . 2 . . Worker 24 | 2 . . 3 . . . 2 . 5 5 . . . . 2 . . . 3 . . . . . . . . . . . . . . 2 . Builder 27 | . . . . . . 1 . . 3 . . . . . 5 3 . . 3 5 . . . . 3 . . . . 4 . . . . . Tunneler 8 | 4 1 . . . . . . . . 1 . . . . . . . . 1 . . . . . . . . . . . . . . 1 . Hauler 18 | . 2 . 5 . . . 2 . 2 3 . . . . 1 . . . . 1 . . . . . . . . . 1 . . . 1 . Recycler 27 | 1 . . 8 1 . 1 . . 2 7 . . . . 1 1 . . 2 . . . . . . . . . . 1 . . . . 2 Minesweeper 2 | . . . . . . . . . . . . . . . . . . . . . . . . 1 . . 1 . . . . . . . . Mechanic 6 | . . . 1 . . . . . 1 . . . . . . . . . . 1 . 1 . . . . . . . 1 . . . 1 . Operator 14 | . . . 1 . . . . . 1 . . . . . . . . 9 1 . . . . . . . . . . 1 . . . . 1 Watcher 28 | . 2 . 5 . . . 1 . 1 3 . . . . 1 1 . . 1 1 . . . . . . . . . 3 1 . 3 5 . Swarmer 97 | . 3 . 3 . . 9 7 1 4 . 3 3 . 7 2 4 . . 3 3 3 1 . 5 . 5 . . 2 3 6 . 9 11 . Saboteur 3 | . . . . . . . . . . . . . . . . . . . . . . . . . . . . . . . 2 . . 1 . Grunt 239 | . 19 2 20 3 . 3 6 11 15 21 10 8 . 6 19 3 . . 5 17 12 11 4 4 5 . . . . 3 10 . 7 13 2 Brawler 11 | . . . 3 . . . . . . . . . . . 1 . . . 1 3 . 1 . . . . . . . . 1 . . 1 . Duelist 21 | . . . 1 . . . . 2 4 2 . . . 1 . 1 . . 1 1 . 3 . . . . . . . . 2 . 1 2 . Protector 3 | . . . 1 . . . . . 1 . . . . . . . . . . 1 . . . . . . . . . . . . . . . Sentry 46 | . . . 6 . . . 4 5 4 2 . 1 . 1 1 6 . . 1 2 . 1 . . 3 . . . 1 3 1 . 2 1 1 Demolisher 4 | . . 1 . . . . . . . . . . . . 2 . . . . . . . . . . . . . . . . . 1 . . Specialist 4 | . . . . . . . . . . . . . . . . . . . . . . . 1 . 1 . . . . . 2 . . . . Hunter 59 | . . . . . . 3 1 . . 2 1 1 . . 6 . . . . 4 1 . . 2 2 . 2 . 4 4 2 . 10 4 10 Programmer 47 | . . . . . . . . . . 4 . . . . 2 1 . . . 6 1 . . 2 1 . 3 . 1 6 6 . 8 4 2 Heavy 1 | . . . . . . . 1 . . . . . . . . . . . . . . . . . . . . . . . . . . . . Behemoth 2 | . . . . . . . . 1 . . . . . . . . . . . . . . 1 . . . . . . . . . . . . Enhanced Grunt 1 | . . . . . . . . . . . . . . . . . . . 1 . . . . . . . . . . . . . . . . Lightning 5 | . . . . . . . . . . . . . . . . . . . 5 . . . . . . . . . . . . . . . . Striker 8 | . . . . . . . . . . . . . . . . . . . . . . . . . . . . . . . . . 8 . . Executioner 7 | . . . . . . . . . . . . . . . . . . . . . . . 2 . . . . . . . . . 5 . . Packrat 2 | . . . . . . . . . . . . . . . . . . . . . . . . . . 2 . . . . . . . . . Samaritan 1 | . . . . . . . . . . . . . . . . . . . . . . . . . . . . . . . . . 1 . . Assembled 9 | . . . . . . . . . . . . . . . 9 . . . . . . . . . . . . . . . . . . . . Thug 2 | . . . . . . . . . . . . . . . . . . . . . . . . . . . . . . . . . 2 . . Savage 1 | . . . . . . . . . . . . . . . . 1 . . . . . . . . . . . . . . . . . . . Mutant 1 | . . . . . . . . . . . 1 . . . . . . . . . . . . . . . . . . . . . . . . Best Kill Streak 17 | 3 5 2 6 4 . 5 4 3 17 15 3 4 . 4 14 4 . 3 8 10 5 7 8 5 8 5 3 . 3 6 7 . 12 11 10 Combat Bots Only 12 | . 5 2 4 3 . 4 4 3 10 6 3 4 . 4 12 4 . . 5 8 5 7 8 5 6 5 3 . 3 6 7 . 12 11 8 Max Kills in Single Turn 5 | 1 2 1 2 1 . 4 4 2 3 3 1 2 . 3 4 1 1 1 2 5 2 3 3 4 2 4 1 . 1 3 3 . 4 5 2 Gunslinging 2 | . . . 1 . . . . . . . . . . . . . . . 1 . . . . . . . . . . . . . 2 1 . Exploded 4 | . . . 2 . . 3 3 . 2 2 1 2 . 3 4 . . . . 3 2 3 3 4 2 4 . . . 3 2 . 2 4 2 Melee 1 | . 1 . . . . . . . . 1 . . . . . 1 . . . . . . . . . . . . . . 1 . . . . Uniques/NPCs Destroyed 2 | . . . . . . . . 1 . . . . . . . . 1 . . . . . . . . . . . . . . . . . . HV-R5K (-8/Garrison) A7 (-6/Cetus) Combat | -11 -10 -10 -9 -9 -9 -8 -8 -8 -8 -7 -7 -7 -7 -6 -6 -6 -6 -6 -6 -5 -5 -5 -5 -4 -4 -4 -4 -4 -3 -3 -3 -3 -2 -1 -1 -------- Run | Jun Mat Min Mat Min Exi Min Mat Gar Mat Fac Low Low Zio Pro Fac Ext Cet Arc Hub Fac Upp Upp War Pro Fac Upp Upp Zhi Pro Res Arm Lab Res Acc Com Damage Taken 35560 | . 818 131 630 80 . 649 1049 1624 1902 1707 458 404 . 521 2569 1027 117 70 2377 1893 432 608 246 461 305 52 377 . 321 454 955 . 3719 3819 5785 Core 4367 | . 161 51 74 . . 107 171 75 302 65 43 21 . 19 210 97 41 28 143 74 58 41 . 26 11 12 15 . 10 14 42 . 425 231 1800 Absorbed by Shields 6588 | . . . 210 29 . 164 . . . . 17 20 . 31 104 408 39 24 . . . . 242 429 285 . 9 . 308 424 1010 . 2377 458 . Redirected to Shielding 36 | . . . . . . . . . 7 . . . . . . . . . . . 29 . . . . . . . . . . . . . . Regen/Repaired (Parts) 1679 | . . . . . . . . . . . . . . . . . . . . 761 . . 431 . . . . . . 487 . . . . . Core Remaining (%) 61 | 100 . 15 . . . 54 . . . . . . . 78 . . . . 38 . . . . 80 . . . . 95 . . 87 70 . . Volleys Fired 1564 | 17 72 5 105 9 . 44 52 83 79 98 30 28 . 28 89 26 . 2 61 85 28 19 39 23 28 12 13 . 33 85 79 13 133 73 73 Largest 6 | 2 2 2 2 2 . 2 2 2 2 2 2 2 . 2 2 2 . 2 2 3 3 3 2 3 3 2 3 . 3 3 3 1 4 6 3 Hottest 480 | 90 130 130 130 112 . 112 112 88 112 132 132 138 . 138 160 101 . 101 180 253 253 236 60 117 117 60 185 . 185 241 286 113 380 480 300 Shots Fired 3256 | 34 144 10 198 18 . 87 101 130 113 157 59 39 . 34 152 52 . 4 123 226 52 27 42 61 57 17 39 . 73 181 188 13 422 297 106 Gun 1662 | 34 144 10 186 18 . 85 62 9 33 . . . . . 89 2 . . 117 3 . . 6 38 36 10 21 . 20 48 61 . 266 290 74 Cannon 1417 | . . . 6 . . . 36 121 61 153 59 30 . 20 48 50 . 4 6 219 44 22 . 19 15 4 18 . 53 131 123 13 146 4 12 Launcher 110 | . . . 6 . . 2 3 . 19 4 . 9 . 14 5 . . . . 2 8 5 7 4 . 3 . . . . 3 . . 3 13 Special 67 | . . . . . . . . . . . . . . . 10 . . . . 2 . . 29 . 6 . . . . 2 1 . 10 . 7 Kinetic 1055 | . . . 4 . . . 32 130 88 32 . 7 . . 30 52 . 4 121 71 12 14 6 57 51 14 34 . 40 66 49 . 75 66 . Thermal 1654 | 34 144 10 186 18 . 85 62 . . . . . . . 62 . . . 2 149 26 8 . . . . 5 . 33 104 135 13 308 200 70 Explosive 127 | . . . 6 . . 2 3 . 19 4 . 9 . 14 15 . . . . 2 8 5 7 4 6 3 . . . 2 1 . 10 . 7 Electromagnetic 383 | . . . 2 . . . 4 . 6 121 59 23 . 20 45 . . . . 2 6 . . . . . . . . 9 3 . 29 27 27 Entropic 6 | . . . . . . . . . . . . . . . . . . . . . . . . . . . . . . . . . . 4 2 Robot Hit Streak 29 | 5 11 5 18 7 . 9 18 9 12 13 13 10 . 5 14 7 . 3 12 11 23 6 12 12 21 7 11 . 10 20 15 . 23 17 29 Robot Miss Streak 7 | 3 7 5 7 2 . 2 2 4 3 4 2 1 . 2 6 7 . 4 5 3 2 4 1 4 1 3 2 . 2 3 2 . 5 7 3 Penetration Max 1 | . . . . . . . . . 1 . . . . . . . . . 1 1 . . 1 1 1 . . . . 1 1 . 1 1 . Secondary Targets 38 | . 3 . 6 . . 2 . . 1 . . . . . . . . . 5 . . . . . . . . . . . . . 8 13 . Max Gunslinging Chain 3 | . 1 . 1 . . 1 . . 1 . . . . . . . . . 1 . . . . . . . . . . . . . 3 2 . Shots Hit Robots 2231 | 17 109 10 167 13 . 54 73 95 77 108 55 17 . 14 125 71 2 18 78 150 35 15 32 42 43 7 24 . 40 103 118 . 269 177 73 Core Hits 1549 | 8 71 19 212 5 . 24 34 33 78 66 24 20 . 30 109 41 1 7 47 72 28 34 22 27 28 9 12 . 19 53 67 . 141 114 94 Critical Kills 32 | . 1 . . . . . . . . . . . . . . . . . 10 2 . . . 2 1 . . . 1 4 6 . 3 2 . Critical Parts Destroyed 16 | . 1 . . . . . . . . . . . . . . . . . 9 . . . . 1 2 . 1 . . . 2 . . . . Critical Strikes 122 | 4 4 . . 1 . 5 7 8 3 6 1 . . . 1 6 . . 19 3 2 1 . 5 6 . 2 . 4 6 9 . 12 2 5 Burn 27 | 4 2 . . 1 . 5 5 . . . . . . . . . . . . . . . . . . . . . . . 1 . 9 . . Meltdown 9 | . . . . . . . . . . . . . . . . . . . . 2 . . . . . . . . . 1 3 . 3 . . Destroy 37 | . . . . . . . . . . . . . . . . . . . 19 . . . . 3 3 . 1 . 1 3 5 . . 2 . Blast 26 | . . . . . . . 2 8 3 1 . . . . . 1 . . . 1 1 1 . 2 2 . 1 . 3 . . . . . . Corrupt 8 | . . . . . . . . . . 4 1 . . . 1 . . . . . 1 . . . . . . . . . . . . . 1 Smash 2 | . 2 . . . . . . . . . . . . . . . . . . . . . . . . . . . . . . . . . . Sever 13 | . . . . . . . . . . 1 . . . . . 5 . . . . . . . . 1 . . . . 2 . . . . 4 Melee Attacks 150 | . 8 . . . . . . 20 . 6 16 6 . 1 3 46 2 14 1 . . . 27 . . . . . . . . . . . . Impact 16 | . 8 . . . . . . . . . . . . . . 7 . . . . . . 1 . . . . . . . . . . . . Slashing 133 | . . . . . . . . 19 . 6 16 6 . 1 3 39 2 14 1 . . . 26 . . . . . . . . . . . . Piercing . | . . . . . . . . . . . . . . . . . . . . . . . . . . . . . . . . . . . . Sneak Attacks 34 | . . . . . . . . 15 . . . . . . . 6 2 11 . . . . . . . . . . . . . . . . . Combat Hostiles . | . . . . . . . . . . . . . . . . . . . . . . . . . . . . . . . . . . . . Follow-up Attacks 2 | . . . . . . . . . . 2 . . . . . . . . . . . . . . . . . . . . . . . . . Damage Inflicted 93226 | 216 1408 153 3173 259 . 1149 1862 3358 4775 4642 2047 1539 . 1790 5554 3240 141 1462 2774 7261 2528 1703 1575 2033 2516 691 665 . 1165 4950 4981 . 11881 5839 5896 Guns 27254 | 216 1223 111 2219 219 . 918 823 139 597 . . . . . 1628 . . . 2276 24 . . 234 827 853 174 311 . 349 961 1258 . 4942 5371 1581 Cannons 31084 | . . . 55 . . . 589 2341 1543 3081 1186 552 . 322 1120 1142 . 84 32 5397 1084 405 . 320 318 . 354 . 816 2889 2932 . 3321 . 1201 Explosions 26946 | . . . 847 . . 194 442 . 2619 1201 121 965 . 1468 2440 . . . 428 1671 1444 1274 1341 886 941 517 . . . 1008 741 . 3190 412 2796 Melee 5467 | . 174 . . . . . . 878 . 98 740 . . . . 2058 141 1378 . . . . . . . . . . . . . . . . . Ramming 968 | . 11 42 52 40 . 37 8 . 16 262 . 22 . . 30 40 . . 38 169 . 24 . . 93 . . . . . . . 28 56 . Kinetic 21727 | . . . 32 . . . 494 2480 2020 755 . 157 . . 537 1142 . 84 2308 1425 300 263 234 1147 1171 174 581 . 771 1256 1001 . 1935 1460 . Thermal 32440 | 216 1223 111 2360 219 . 918 823 . . 865 121 81 . . 1231 . . . . 4765 572 387 . . 38 . 84 . 394 2428 3189 . 6733 3869 1813 Explosive 21371 | . . . 706 . . 194 442 . 2619 336 . 884 . 1468 2393 . . . . 696 1444 1029 1341 886 903 517 . . . 1008 413 . 2742 . 1350 Electromagnetic 8853 | . . . 23 . . . 95 . 120 2326 1186 395 . 322 1027 . . . 428 206 212 . . . . . . . . 166 328 . 43 454 1522 Impact 174 | . 174 . . . . . . . . . . . . . . . . . . . . . . . . . . . . . . . . . . Slashing 6800 | . . . . . . . . 878 . 98 740 . . . 336 2058 141 1378 . . . . . . 311 . . . . 92 50 . 400 . 318 Piercing . | . . . . . . . . . . . . . . . . . . . . . . . . . . . . . . . . . . . . Entropic 893 | . . . . . . . . . . . . . . . . . . . . . . . . . . . . . . . . . . . 893 Highest Corruption 57 | . 2 2 2 2 2 2 . . . 2 . 1 1 . 13 17 17 17 57 4 4 4 4 . . . . . . 2 5 5 5 6 45 Average Corruption 5 | . 2 2 2 2 2 2 . . . 1 . 1 1 . 12 13 17 10 14 3 4 4 4 . . . . . . 1 2 5 3 3 10 Corruption Purged 19 | . . . . . . . . . . 2 . . . . . . . 13 . . . . . . . . . . . 3 1 . . . . Corruption Blocked 21 | . . . . . . . . . . . . . . . 5 . . . . . . . . . . . . . . . . . 16 . . Effects 387 | . 7 20 11 22 15 22 . . . 5 . 9 1 . 20 74 13 15 26 7 13 10 1 . . . . . . 3 20 14 15 4 40 Message Errors 84 | . 1 5 6 4 4 3 . . . 1 . 3 . . 4 15 4 4 6 1 1 2 . . . . . . . 1 2 5 1 2 9 Matter Fused 91 | . 3 4 2 3 4 4 . . . 1 . 2 1 . 5 19 5 2 10 . 4 3 . . . . . . . 1 3 4 2 2 7 Heat Flow Errors 47 | . 1 4 . 5 3 3 . . . 1 . 1 . . 3 9 . 2 2 1 1 2 . . . . . . . . 4 1 . . 4 Energy Discharges 47 | . . 1 1 4 1 6 . . . . . . . . 3 10 1 1 1 2 3 1 . . . . . . . . 2 3 2 . 5 Parts Rejected 3 | . . . . . . . . . . . . . . . 1 . . . . . . . . . . . . . . 1 . . . . 1 Parts Fused 9 | . . 1 . 1 . . . . . . . . . . . 1 . 1 1 1 . . . . . . . . . . . . 1 . 2 Data Loss (minor) 37 | . 1 3 1 1 2 2 . . . 1 . 2 . . . 9 2 2 1 1 1 . . . . . . . . . 2 1 2 . 3 Data Loss (major) 26 | . 1 . 1 2 1 1 . . . 1 . . . . 1 5 1 3 2 . . 2 . . . . . . . . 2 . 1 . 2 Misfires 11 | . . 1 . . . 1 . . . . . 1 . . . 1 . . 1 1 1 . . . . . . . . . 1 . 1 . 2 Alerts 12 | . . . . 2 . 2 . . . . . . . . 1 1 . . 1 . 2 . 1 . . . . . . . 1 . . . 1 Misdirections 7 | . . . . . . . . . . . . . . . . 3 . . 1 . . . . . . . . . . . . . . . 3 Weapon Failures 13 | . . 1 . . . . . . . . . . . . 2 1 . . . . . . . . . . . . . . 3 . 5 . 1 Overload Shots 14 | . . . . . . . . . . . . . . . . . . . . . . . . . . . . . . . . . . 10 4 Effects 1 | . . . . . . . . . . . . . . . . . . . . . . . . . . . . . . . . . . 1 . Energy Bleed 1 | . . . . . . . . . . . . . . . . . . . . . . . . . . . . . . . . . . 1 . Overflow Damage 3193 | . 27 . 14 . . . . 104 324 246 333 102 . 3 123 339 . 517 16 248 123 47 6 47 78 1 . . 6 148 68 . 273 . . Projectiles 904 | . . . . . . . . 43 162 149 12 62 . . 26 15 . . . 79 55 . . 3 . . . . 6 57 68 . 167 . . Explosions 925 | . . . 14 . . . . . 162 63 . 40 . 3 97 . . . 16 155 68 44 6 44 15 1 . . . 91 . . 106 . . Melee 1364 | . 27 . . . . . . 61 . 34 321 . . . . 324 . 517 . 14 . 3 . . 63 . . . . . . . . . . Knockbacks 89 | . 2 . . 1 . . 2 16 7 13 . 3 . . 1 11 . . . 13 3 1 . 6 5 . 3 . 1 1 . . . . . Impact 6 | . 2 . . 1 . . . . . 2 . . . . . . . . . 1 . . . . . . . . . . . . . . . Kinetic 81 | . . . . . . . 2 15 7 11 . 3 . . 1 11 . . . 11 3 1 . 6 5 . 3 . 1 1 . . . . . Secondary 2 | . . . . . . . . 1 . . . . . . . . . . . 1 . . . . . . . . . . . . . . . Self-Inflicted Damage 951 | . . . . . . . . . 364 179 92 49 . 62 37 . . . 99 . . 19 . . . 25 . . . 16 . . . . 9 Shots 24 | . . . . . . . . . 9 3 2 1 . 1 1 . . . 1 . . 1 . . . 1 . . . 1 . . . . 3 Rammed 39 | . 3 5 5 4 . 6 . . 2 13 . 1 . . . . . . . . . . . . . . . . . . . . . . . Targets Rammed 73 | . 4 5 5 4 . 6 1 . 3 21 . 1 . . 2 1 . . 3 11 . 3 . . 1 . . . . . . . 1 1 . Kicked 22 | . . . . . . . . . . . . . . . 1 1 . . 3 11 . 3 . . 1 . . . . . . . 1 1 . Crushed 12 | . 1 . . . . . 1 . 1 8 . . . . 1 . . . . . . . . . . . . . . . . . . . . Highest Temperature 784 | 210 274 271 251 239 168 328 194 243 20 231 222 243 . 17 335 270 . 259 312 342 69 145 . 357 . . 6 . 27 171 343 48 364 784 410 Average Temperature 83 | 78 81 96 70 96 70 112 55 77 8 64 60 75 . 9 80 56 . 96 109 51 26 83 . 139 . . 3 . 10 60 118 14 69 157 98 Received Heat Transfer 6342 | . 438 48 194 40 . 102 369 777 522 516 150 102 . 162 670 302 . . 354 327 129 174 10 22 36 . . . 12 24 114 . 129 511 108 Effects 20 | . . . . . . . . 3 . 1 . 1 . . 3 . . . . 1 . . . . . . . . . . 3 . 2 6 . Shutdowns 2 | . . . . . . . . . . . . . . . . . . . . . . . . . . . . . . . . . 1 1 . Energy Bleed 3 | . . . . . . . . . . 1 . 1 . . . . . . . 1 . . . . . . . . . . . . . . . Interference 10 | . . . . . . . . 3 . . . . . . 3 . . . . . . . . . . . . . . . 3 . 1 . . Matter Decay 2 | . . . . . . . . . . . . . . . . . . . . . . . . . . . . . . . . . . 2 . Short Circuit 3 | . . . . . . . . . . . . . . . . . . . . . . . . . . . . . . . . . . 3 . Siege Activations . | . . . . . . . . . . . . . . . . . . . . . . . . . . . . . . . . . . . . Robots Corrupted 23 | . . . . . . . 1 . . 6 3 1 . 2 2 . . . 1 . 1 . . . . . . . . 1 2 . . . 3 Combat Hostiles 22 | . . . . . . . 1 . . 6 3 1 . 2 2 . . . . . 1 . . . . . . . . 1 2 . . . 3 Parts Fried 62 | . 2 . 1 . . . . . . 15 6 2 . 2 7 . 1 . 11 . 1 . . . . . . . . . 2 . . 4 8 Impact Corruptions 10 | . 1 . . . . . . . . 2 . . . . . 1 . . . 1 . 2 . . 3 . . . . . . . . . . Robots Melted 15 | . . . . . . . 1 . . . . . . . . . . . . 2 . . . . . . . . . 1 3 . 6 2 . Combat Hostiles 15 | . . . . . . . 1 . . . . . . . . . . . . 2 . . . . . . . . . 1 3 . 6 2 . Parts Melted 93 | 2 6 . 2 . . 4 7 . . . . . . . 1 . . . . 5 . . . . 2 . . . . 8 12 . 31 12 1 Heat Transferred 43063 | 878 2949 145 3071 555 . 2331 2146 . . 650 100 100 . . 2750 . . . . 3237 450 300 . . 50 . 100 . 600 2925 3917 . 10130 4588 1091 Parts Sabotaged 5 | . . . . . . . . . . . . . . . . . . . . . . . . . . . . . . . 3 . . 2 . Parts Stolen . | . . . . . . . . . . . . . . . . . . . . . . . . . . . . . . . . . . . . Parts Stripped . | . . . . . . . . . . . . . . . . . . . . . . . . . . . . . . . . . . . . Power Chain Reactions 16 | . . . . . . . . . . 3 3 1 . . 1 . . . . 4 . 1 . . . . . . . . . . 1 . 2 Missiles Intercepted 7 | . . . . . . . . . . . . . . . . . . . . . . . . . . . . . . . . . . . 7 Alert | -11 -10 -10 -9 -9 -9 -8 -8 -8 -8 -7 -7 -7 -7 -6 -6 -6 -6 -6 -6 -5 -5 -5 -5 -4 -4 -4 -4 -4 -3 -3 -3 -3 -2 -1 -1 ------- Run | Jun Mat Min Mat Min Exi Min Mat Gar Mat Fac Low Low Zio Pro Fac Ext Cet Arc Hub Fac Upp Upp War Pro Fac Upp Upp Zhi Pro Res Arm Lab Res Acc Com Peak Influence 1756 | 35 313 127 929 451 . 238 342 1062 1073 1018 . . . . 635 1270 910 622 1058 1449 . . . . 1075 . . . . 528 911 . 1651 1756 1267 Initial 1123 | . 22 47 . 361 . . . 222 517 487 . . . . 18 310 711 356 147 518 . . . . 191 . . . . 54 277 . . 1100 1123 Average 467 | 17 164 33 367 199 . 85 84 654 751 568 . . . . 276 481 812 578 689 758 . . . . 526 . . . . 243 567 . 679 1270 1126 Maximum Alert Level 5 | . 1 . 3 2 . 1 1 3 3 3 . . . . 2 4 3 2 3 4 . . . . 3 . . . . 2 3 . 5 5 4 Low Security (%) 32 | 100 83 100 42 45 . 87 90 . . . . . . . 42 . . . 2 . . . . . 20 . . . . 50 . . 36 . . Level 1 17 | . 16 . 15 49 . 12 9 17 . 20 . . . . 24 52 . 2 11 . . . . . 34 . . . . 27 20 . 10 . . Level 2 22 | . . . 24 5 . . . 39 43 52 . . . . 33 25 3 97 26 44 . . . . 9 . . . . 21 57 . 5 . . Level 3 19 | . . . 17 . . . . 43 56 26 . . . . . 16 96 . 59 50 . . . . 35 . . . . . 22 . 20 22 25 Level 4 6 | . . . . . . . . . . . . . . . . 5 . . . 4 . . . . . . . . . . . . 17 58 74 Level 5 . | . . . . . . . . . . . . . . . . . . . . . . . . . . . . . . . . . 3 . . High Security . | . . . . . . . . . . . . . . . . . . . . . . . . . . . . . . . . . 6 19 . Max Security . | . . . . . . . . . . . . . . . . . . . . . . . . . . . . . . . . . . . . Squads Dispatched 110 | . 5 . 6 . . 1 3 . 6 11 . . . . 11 3 . . 4 11 . 1 . . 8 . . . . 14 6 . 2 12 6 Investigation 24 | . 4 . 3 . . 1 . . 1 4 . . . . 2 1 . . . 2 . . . . 1 . . . . 1 2 . 1 1 . Extermination 16 | . . . . . . . . . . 3 . . . . 2 . . . . 3 . . . . . . . . . 3 2 . . 1 2 Reinforcement 24 | . 1 . 1 . . . 2 . 2 2 . . . . 3 . . . 1 3 . . . . 1 . . . . 2 1 . 1 2 2 Assault 25 | . . . 2 . . . . . 2 2 . . . . . 2 . . . 2 . 1 . . 4 . . . . 1 1 . . 6 2 Garrison 21 | . . . . . . . 1 . 1 . . . . . 4 . . . 3 1 . . . . 2 . . . . 7 . . . 2 . Intercept . | . . . . . . . . . . . . . . . . . . . . . . . . . . . . . . . . . . . . Searches Triggered . | . . . . . . . . . . . . . . . . . . . . . . . . . . . . . . . . . . . . Construction Impeded 7 | . . . . . . . . . 2 1 . . . . 1 . . . . 2 . . . . . . . . . 1 . . . . . Haulers Reinforced 3 | . . . . . . . . . . . . . . . . . . . . . . . . . . . . . . 1 . . 1 1 . Active Scanning Responses . | . . . . . . . . . . . . . . . . . . . . . . . . . . . . . . . . . . . . Cargo Convoy Interrupts 1 | . . . . . . . . . . . . . . . 1 . . . . . . . . . . . . . . . . . . . . Stealth | -11 -10 -10 -9 -9 -9 -8 -8 -8 -8 -7 -7 -7 -7 -6 -6 -6 -6 -6 -6 -5 -5 -5 -5 -4 -4 -4 -4 -4 -3 -3 -3 -3 -2 -1 -1 --------- Run | Jun Mat Min Mat Min Exi Min Mat Gar Mat Fac Low Low Zio Pro Fac Ext Cet Arc Hub Fac Upp Upp War Pro Fac Upp Upp Zhi Pro Res Arm Lab Res Acc Com Distress Signals 36 | . 1 . 3 . . 1 2 . 4 . . . . . 2 2 2 . 4 2 . . 1 . . . . . . 1 1 . 3 3 4 Communications Jammed . | . . . . . . . . . . . . . . . . . . . . . . . . . . . . . . . . . . . . Distress Signals . | . . . . . . . . . . . . . . . . . . . . . . . . . . . . . . . . . . . . Times Spotted 841 | . 32 3 51 3 . 16 22 25 43 44 22 16 . 15 53 53 8 8 28 58 18 16 43 10 14 5 5 . 8 20 41 . 68 58 35 Peak Tracking Total 14 | . 4 2 6 3 . 4 4 4 8 5 5 4 . 4 14 10 5 2 7 8 5 8 11 5 5 5 2 . 3 4 6 . 11 11 8 Tactical Retreats 50 | . 1 . 5 . . 2 1 . . 1 5 4 . . 2 4 . . . 2 3 1 4 . . . . . . 1 . . 5 7 2 Traps | -11 -10 -10 -9 -9 -9 -8 -8 -8 -8 -7 -7 -7 -7 -6 -6 -6 -6 -6 -6 -5 -5 -5 -5 -4 -4 -4 -4 -4 -3 -3 -3 -3 -2 -1 -1 ------- Run | Jun Mat Min Mat Min Exi Min Mat Gar Mat Fac Low Low Zio Pro Fac Ext Cet Arc Hub Fac Upp Upp War Pro Fac Upp Upp Zhi Pro Res Arm Lab Res Acc Com Traps Triggered 18 | . 3 . 1 . . . . 5 . 2 . . . . . 3 . . . 1 . . . . . . . . . 1 . . . 1 1 Indirectly . | . . . . . . . . . . . . . . . . . . . . . . . . . . . . . . . . . . . . Trap Hack Attempts . | . . . . . . . . . . . . . . . . . . . . . . . . . . . . . . . . . . . . Triggered . | . . . . . . . . . . . . . . . . . . . . . . . . . . . . . . . . . . . . Disarmed 1 | . . . 1 . . . . . . . . . . . . . . . . . . . . . . . . . . . . . . . . Reprogrammed 4 | . . . . . . . . . . . . . . . . . . . 4 . . . . . . . . . . . . . . . . Reused 3 | . . . . . . . . . . . . . . . . . . . 3 . . . . . . . . . . . . . . . . Traps Extracted . | . . . . . . . . . . . . . . . . . . . . . . . . . . . . . . . . . . . . Installed 3 | . . . . . . . . . . . 3 . . . . . . . . . . . . . . . . . . . . . . . . Triggered 39 | . . . . . . . . . . . 2 . . . 1 . . . 3 . 1 . 32 . . . . . . . . . . . . Machines | -11 -10 -10 -9 -9 -9 -8 -8 -8 -8 -7 -7 -7 -7 -6 -6 -6 -6 -6 -6 -5 -5 -5 -5 -4 -4 -4 -4 -4 -3 -3 -3 -3 -2 -1 -1 ---------- Run | Jun Mat Min Mat Min Exi Min Mat Gar Mat Fac Low Low Zio Pro Fac Ext Cet Arc Hub Fac Upp Upp War Pro Fac Upp Upp Zhi Pro Res Arm Lab Res Acc Com Machines Disabled 93 | . 1 . 5 1 . . 2 4 6 8 . 2 . . 2 1 1 1 8 4 1 2 . . 21 . . . . 4 6 1 5 7 . Max in Single Turn 6 | . 1 . 3 1 . . 1 1 2 6 . 1 . . 2 . . . 4 2 1 1 . . 6 . . . . 1 1 1 1 1 . Garrison Access 6 | . . . . . . . . . 1 . . . . . . . . . 1 1 . . . . 1 . . . . . . . 2 . . Garrison Relay 3 | . . . . . . . . 3 . . . . . . . . . . . . . . . . . . . . . . . . . . . Network Hub 2 | . . . . . . . . . . . . . . . . . . . 2 . . . . . . . . . . . . . . . . Machines Repaired . | . . . . . . . . . . . . . . . . . . . . . . . . . . . . . . . . . . . . Machines Sabotaged . | . . . . . . . . . . . . . . . . . . . . . . . . . . . . . . . . . . . . Overloaded Fab Kills . | . . . . . . . . . . . . . . . . . . . . . . . . . . . . . . . . . . . . Hacking | -11 -10 -10 -9 -9 -9 -8 -8 -8 -8 -7 -7 -7 -7 -6 -6 -6 -6 -6 -6 -5 -5 -5 -5 -4 -4 -4 -4 -4 -3 -3 -3 -3 -2 -1 -1 --------- Run | Jun Mat Min Mat Min Exi Min Mat Gar Mat Fac Low Low Zio Pro Fac Ext Cet Arc Hub Fac Upp Upp War Pro Fac Upp Upp Zhi Pro Res Arm Lab Res Acc Com Machines Accessed 115 | . 9 . 9 . 1 1 2 2 6 15 1 1 . 1 8 8 . . 6 11 1 . 2 . 6 2 . 4 . 5 6 . 3 1 4 Terminals 63 | . 7 . 6 . . 1 1 2 4 6 . 1 . 1 3 7 . . 5 4 1 . . . 4 1 . . . 4 1 . 1 1 2 Fabricators 14 | . . . . . . . . . . 5 . . . . 3 . . . . . . . . . 1 . . . . . 4 . 1 . . Repair Stations 7 | . 1 . . . . . . . . . . . . . . . . . . 3 . . . . . . . . . 1 1 . . . 1 Recycling Units 9 | . 1 . 2 . . . . . . 1 . . . . 1 1 . . . 2 . . . . . . . . . . . . . . 1 Scanalyzers 6 | . . . 1 . . . . . 1 2 . . . . . . . . . 2 . . . . . . . . . . . . . . . Garrison Access 7 | . . . . . . . 1 . 1 1 . . . . 1 . . . 1 . . . . . 1 . . . . . . . 1 . . Total Hacks 406 | . 27 . 31 . 1 3 5 6 24 44 1 5 . 2 22 15 . . 21 78 7 . 6 . 27 9 . 16 . 15 19 . 9 4 9 Successful 213 | . 6 . 19 . 1 1 2 3 12 27 1 5 . 2 10 6 . . 11 38 7 . 6 . 10 9 . 16 . 4 7 . 2 3 5 Failed 192 | . 21 . 12 . . 2 3 3 11 17 . . . . 12 9 . . 10 40 . . . . 17 . . . . 11 12 . 7 1 4 Catastrophic 42 | . 4 . 3 . . 2 . . 1 4 . . . . 4 4 . . . 6 . . . . 5 . . . . 3 2 . 3 1 . Database Lockouts 1 | . . . . . . . . . 1 . . . . . . . . . . . . . . . . . . . . . . . . . . Manual 159 | . 14 . 19 . . 3 2 2 12 18 . . . . 7 5 1 . 5 41 . . . . 13 . . . . 8 5 . . . 4 Terminals 226 | . 23 . 25 . . 3 3 6 17 10 . 5 . 2 5 13 . . 20 34 7 . . . 19 8 . . . 13 1 . 3 4 5 Fabricators 49 | . . . . . . . . . . 13 . . . . 12 . . . . . . . . . 5 . . . . . 16 . 3 . . Repair Stations 27 | . 2 . . . . . . . . . . . . . . . . . . 19 . . . . . . . . . 2 2 . . . 2 Recycling Units 33 | . 2 . 3 . . . . . . 10 . . . . 2 2 . . . 12 . . . . . . . . . . . . . . 2 Scanalyzers 31 | . . . 3 . . . . . 6 9 . . . . . . . . . 13 . . . . . . . . . . . . . . . Garrison Access 15 | . . . . . . . 2 . 1 2 . . . . 3 . . . 1 . . . . . 3 . . . . . . . 3 . . Terminal Hacks 108 | . 4 . 14 . 1 1 1 2 5 2 1 5 . 2 1 4 . . 9 8 7 . 6 . 5 9 . 16 . 1 . . . 3 1 Record 27 | . . . . . 1 . . . . . . 5 . 2 . . . . . . 7 . . . . 8 . 4 . . . . . . . Part Schematic 7 | . 2 . . . . 1 . . . . . . . . . . . . . . . . . . . . . 4 . . . . . . . Robot Analysis 10 | . . . 5 . . . . . 1 . . . . . . . . . . . . . . . . . . 4 . . . . . . . Prototype ID Bank 12 | . . . 1 . . . . . . . . . . . . 1 . . 1 . . . 5 . . . . 4 . . . . . . . Open Door 7 | . . . . . . . . . . . 1 . . . 1 2 . . . . . . 1 . . 1 . . . . . . . . 1 Level Access Points 1 | . . . . . . . . . . . . . . . . . . . 1 . . . . . . . . . . . . . . . . Branch Access Points 5 | . . . 1 . . . . . . 1 . . . . . . . . . 2 . . . . 1 . . . . . . . . . . Emergency Access Points 1 | . . . . . . . . 1 . . . . . . . . . . . . . . . . . . . . . . . . . . . Terminal Index 5 | . . . . . . . . . . 1 . . . . . 1 . . . 1 . . . . 1 . . . . . . . . 1 . Recycling Unit Index 1 | . . . . . . . . . . . . . . . . . . . . 1 . . . . . . . . . . . . . . . Scanalyzer Index 2 | . . . . . . . . . 1 . . . . . . . . . . 1 . . . . . . . . . . . . . . . Garrison Index 1 | . . . . . . . . . . . . . . . . . . . 1 . . . . . . . . . . . . . . . . Alert Level 4 | . . . 1 . . . . . 1 . . . . . . . . . 1 . . . . . 1 . . . . . . . . . . Unreport Threat 2 | . . . . . . . . . . . . . . . . . . . . . . . . . . . . . . . . . . 2 . Locate Traps 5 | . 1 . 1 . . . . . . . . . . . . . . . 1 . . . . . 1 . . . . 1 . . . . . Disarm Traps 1 | . . . 1 . . . . . . . . . . . . . . . . . . . . . . . . . . . . . . . . Reprogram Traps 1 | . . . . . . . . . . . . . . . . . . . 1 . . . . . . . . . . . . . . . . Hauler Manifests 2 | . . . 1 . . . . . 1 . . . . . . . . . . . . . . . . . . . . . . . . . . Zone Layout 13 | . 1 . 3 . . . 1 . 1 . . . . . . . . . 3 3 . . . . 1 . . . . . . . . . . Patrol Navigation 1 | . . . . . . . . 1 . . . . . . . . . . . . . . . . . . . . . . . . . . . Fabricator Hacks 23 | . . . . . . . . . . 5 . . . . 8 . . . . . . . . . 3 . . . . . 5 . 2 . . Network Status 4 | . . . . . . . . . . 1 . . . . 1 . . . . . . . . . 1 . . . . . 1 . . . . Load Schematic 10 | . . . . . . . . . . 3 . . . . 3 . . . . . . . . . 1 . . . . . 2 . 1 . . Build 9 | . . . . . . . . . . 1 . . . . 4 . . . . . . . . . 1 . . . . . 2 . 1 . . Repair Station Hacks 15 | . 1 . . . . . . . . . . . . . . . . . . 11 . . . . . . . . . 2 . . . . 1 Scan Component 9 | . 1 . . . . . . . . . . . . . . . . . . 6 . . . . . . . . . 1 . . . . 1 Repair 6 | . . . . . . . . . . . . . . . . . . . . 5 . . . . . . . . . 1 . . . . . Recycling Unit Hacks 6 | . . . . . . . . . . 4 . . . . . . . . . 1 . . . . . . . . . . . . . . 1 Recycle Component 1 | . . . . . . . . . . 1 . . . . . . . . . . . . . . . . . . . . . . . . . Process 1 | . . . . . . . . . . 1 . . . . . . . . . . . . . . . . . . . . . . . . . Retrieve Matter 1 | . . . . . . . . . . 1 . . . . . . . . . . . . . . . . . . . . . . . . . Retrieve Components 3 | . . . . . . . . . . 1 . . . . . . . . . 1 . . . . . . . . . . . . . . 1 Scanalyzer 22 | . . . 2 . . . . . 4 9 . . . . . . . . . 7 . . . . . . . . . . . . . . . Insert Component 9 | . . . 1 . . . . . 2 2 . . . . . . . . . 4 . . . . . . . . . . . . . . . Analyze 13 | . . . 1 . . . . . 2 7 . . . . . . . . . 3 . . . . . . . . . . . . . . . Garrison Access Hacks 3 | . . . . . . . 1 . 1 . . . . . . . . . 1 . . . . . . . . . . . . . . . . Unlock Access 1 | . . . . . . . 1 . . . . . . . . . . . . . . . . . . . . . . . . . . . . Seal Access 2 | . . . . . . . . . 1 . . . . . . . . . 1 . . . . . . . . . . . . . . . . Unauthorized Hacks 36 | . 1 . 3 . . . . 1 2 7 . . . . 1 2 . . 1 11 . . . . 2 . . . . 1 2 . . . 2 Terminals 15 | . . . 1 . . . . 1 2 . . . . . . 1 . . 1 5 . . . . 1 . . . . 1 . . . . 2 Track 1 | . . . . . . . . . . . . . . . . . . . . 1 . . . . . . . . . . . . . . . Assimilate 1 | . . . . . . . . . . . . . . . . . . . . 1 . . . . . . . . . . . . . . . Botnet 8 | . . . . . . . . . 2 . . . . . . 1 . . . 2 . . . . 1 . . . . 1 . . . . 1 Disrupt 1 | . . . . . . . . . . . . . . . . . . . . . . . . . . . . . . . . . . . 1 Operators 3 | . . . 1 . . . . . . . . . . . . . . . 1 1 . . . . . . . . . . . . . . . Override 1 | . . . . . . . . 1 . . . . . . . . . . . . . . . . . . . . . . . . . . . Fabricators 8 | . . . . . . . . . . 4 . . . . 1 . . . . . . . . . 1 . . . . . 2 . . . . Prioritize 2 | . . . . . . . . . . . . . . . 1 . . . . . . . . . . . . . . . 1 . . . . Liberate 1 | . . . . . . . . . . . . . . . . . . . . . . . . . . . . . . . 1 . . . . Haulers 2 | . . . . . . . . . . 1 . . . . . . . . . . . . . . 1 . . . . . . . . . . Recompile 3 | . . . . . . . . . . 3 . . . . . . . . . . . . . . . . . . . . . . . . . Repair Stations 1 | . . . . . . . . . . . . . . . . . . . . 1 . . . . . . . . . . . . . . . Mechanics 1 | . . . . . . . . . . . . . . . . . . . . 1 . . . . . . . . . . . . . . . Recycling Units 11 | . 1 . 2 . . . . . . 3 . . . . . 1 . . . 4 . . . . . . . . . . . . . . . Reject 4 | . . . . . . . . . . 1 . . . . . 1 . . . 2 . . . . . . . . . . . . . . . Recyclers 2 | . . . . . . . . . . 1 . . . . . . . . . 1 . . . . . . . . . . . . . . . Mask 2 | . . . . . . . . . . 1 . . . . . . . . . 1 . . . . . . . . . . . . . . . Tunnel 3 | . 1 . 2 . . . . . . . . . . . . . . . . . . . . . . . . . . . . . . . . Scanalyzers 1 | . . . . . . . . . . . . . . . . . . . . 1 . . . . . . . . . . . . . . . Researchers 1 | . . . . . . . . . . . . . . . . . . . . 1 . . . . . . . . . . . . . . . Garrison Access . | . . . . . . . . . . . . . . . . . . . . . . . . . . . . . . . . . . . . Data Cores Recovered 2 | . . . . . . . . . 1 . . . . . . . . . 1 . . . . . . . . . . . . . . . . Used 1 | . . . . . . . . . 1 . . . . . . . . . . . . . . . . . . . . . . . . . . Hacking Detections 91 | . 9 . 7 . . 1 2 2 5 11 . . . 1 7 8 1 . 5 9 1 . . . 6 . . . . 4 5 . 3 1 3 Full Trace Events 17 | . 2 . 1 . . 1 . 1 2 . . . . . 2 1 . . . 2 . . . . 1 . . . . 1 2 . 1 . . Feedback Events . | . . . . . . . . . . . . . . . . . . . . . . . . . . . . . . . . . . . . Feedback Blocked . | . . . . . . . . . . . . . . . . . . . . . . . . . . . . . . . . . . . . Robot Schematics Acquired . | . . . . . . . . . . . . . . . . . . . . . . . . . . . . . . . . . . . . Robots Built . | . . . . . . . . . . . . . . . . . . . . . . . . . . . . . . . . . . . . Authchips . | . . . . . . . . . . . . . . . . . . . . . . . . . . . . . . . . . . . . Time . | . . . . . . . . . . . . . . . . . . . . . . . . . . . . . . . . . . . . Total Robot Build Rating . | . . . . . . . . . . . . . . . . . . . . . . . . . . . . . . . . . . . . Part Schematics Acquired 13 | . 2 . 1 . . 1 . . 1 2 . . . . . . . . . 2 . . . . . . . 4 . . . . . . . Parts Built 11 | . . . . . . . . . . 1 . . . . 7 . . . . . . . . . 1 . . . . . 2 . . . . Authchips 3 | . . . . . . . . . . 1 . . . . 2 . . . . . . . . . . . . . . . . . . . . Time 1060 | . . . . . . . . . . 204 . . . . 309 . . . . . . . . . 204 . . . . . 241 . 102 . . Total Part Build Rating 88 | . . . . . . . . . . 8 . . . . 55 . . . . . . . . . 8 . . . . . 17 . . . . Parts Repaired 6 | . . . . . . . . . . . . . . . . . . . . 5 . . . . . . . . . 1 . . . . . Time 489 | . . . . . . . . . . . . . . . . . . . . 453 . . . . . . . . . 36 . . . . . Parts Recycled 1 | . . . . . . . . . . 1 . . . . . . . . . . . . . . . . . . . . . . . . . Recycled Matter 213 | . . . . . . . . . . 213 . . . . . . . . . . . . . . . . . . . . . . . . . Retrieved Matter 213 | . . . . . . . . . . 213 . . . . . . . . . . . . . . . . . . . . . . . . . Retrieved Components 7 | . . . . . . . . . . 1 . . . . . . . . . 3 . . . . . . . . . . . . . . 3 Parts Scanalyzed 7 | . . . 1 . . . . . 2 1 . . . . . . . . . 3 . . . . . . . . . . . . . . . Part Schematics Acquired 6 | . . . 1 . . . . . 1 2 . . . . . . . . . 2 . . . . . . . . . . . . . . . Parts Damaged 1 | . . . . . . . . . . . . . . . . . . . . 1 . . . . . . . . . . . . . . . Bothacking | -11 -10 -10 -9 -9 -9 -8 -8 -8 -8 -7 -7 -7 -7 -6 -6 -6 -6 -6 -6 -5 -5 -5 -5 -4 -4 -4 -4 -4 -3 -3 -3 -3 -2 -1 -1 ------------ Run | Jun Mat Min Mat Min Exi Min Mat Gar Mat Fac Low Low Zio Pro Fac Ext Cet Arc Hub Fac Upp Upp War Pro Fac Upp Upp Zhi Pro Res Arm Lab Res Acc Com Used RIF Installer . | . . . . . . . . . . . . . . . . . . . . . . . . . . . . . . . . . . . . Robots Hacked 14 | . . . . . . . . 1 . . . . . . . . . . . 1 . . 12 . . . . . . . . . . . . Non-combat 1 | . . . . . . . . . . . . . . . . . . . . 1 . . . . . . . . . . . . . . . Combat 13 | . . . . . . . . 1 . . . . . . . . . . . . . . 12 . . . . . . . . . . . . Robot Hacks Applied 14 | . . . . . . . . 1 . . . . . . . . . . . 1 . . 12 . . . . . . . . . . . . parse_system 13 | . . . . . . . . 1 . . . . . . . . . . . . . . 12 . . . . . . . . . . . . check_alert 1 | . . . . . . . . . . . . . . . . . . . . 1 . . . . . . . . . . . . . . . Relay Couplers Released 20 | . . . . . . . . 13 . . . . . . . . . . 3 1 . . . . 2 . . . . . . . 1 . . Machine Destruction 20 | . . . . . . . . 13 . . . . . . . . . . 3 1 . . . . 2 . . . . . . . 1 . . Fabnet Peak Effective % . | . . . . . . . . . . . . . . . . . . . . . . . . . . . . . . . . . . . . Robots Rewired 29 | . . . . . . . . . . 1 . . . . . 17 . . . 1 . 2 5 . . . . . . . 3 . . . . Allies Hacked 2 | . . . . . . . . . . . . . . . . 2 . . . . . . . . . . . . . . . . . . . Hacks Repelled . | . . . . . . . . . . . . . . . . . . . . . . . . . . . . . . . . . . . . Allies | -11 -10 -10 -9 -9 -9 -8 -8 -8 -8 -7 -7 -7 -7 -6 -6 -6 -6 -6 -6 -5 -5 -5 -5 -4 -4 -4 -4 -4 -3 -3 -3 -3 -2 -1 -1 -------- Run | Jun Mat Min Mat Min Exi Min Mat Gar Mat Fac Low Low Zio Pro Fac Ext Cet Arc Hub Fac Upp Upp War Pro Fac Upp Upp Zhi Pro Res Arm Lab Res Acc Com Total Allies 44 | . . . . . . . . 1 . 1 . . . . . 22 5 . . 1 . 2 5 . . . . . . . 3 . 1 2 1 Largest Group 15 | . . . . . . . . 1 . 1 . . . . . 15 11 9 8 1 . 2 5 . . . . . . . 3 . 1 1 1 Highest-Rated Group 765 | . . . . . . . . 146 . 32 . . . . . 574 765 523 503 27 . 59 253 . . . . . . . 141 . 64 69 64 Highest-Rated Ally 159 | . . . . . . . . 146 . 32 . . . . . 159 146 96 96 27 . 30 68 . . . . . . . 47 . 64 69 64 Total Orders 37 | . . . . . . . . . . . . . . . . . . . 3 4 . . 10 . . . . . . . . . . 5 15 STAY 11 | . . . . . . . . . . . . . . . . . . . 3 1 . . 6 . . . . . . . . . . 1 . ROAM 1 | . . . . . . . . . . . . . . . . . . . . . . . 1 . . . . . . . . . . . . FOLLOW 3 | . . . . . . . . . . . . . . . . . . . . . . . 3 . . . . . . . . . . . . DROP 1 | . . . . . . . . . . . . . . . . . . . . 1 . . . . . . . . . . . . . . . EXPLORE 15 | . . . . . . . . . . . . . . . . . . . . 1 . . . . . . . . . . . . . 4 10 RETURN 6 | . . . . . . . . . . . . . . . . . . . . 1 . . . . . . . . . . . . . . 5 Ally Attacks 431 | . . . . . . . . 14 . 1 . . . . . 235 37 28 45 . . 5 42 . . . . . . . 17 . . 7 . Total Damage 10878 | . . . . . . . . 813 . 38 . . . . . 4518 743 880 1712 . . 65 1460 . . . . . . . 509 . . 140 . Kills 76 | . . . . . . . . 5 . . . . . . . 32 7 4 14 . . . 9 . . . . . . . 4 . . 1 . Allies Corrupted 5 | . . . . . . . . . . . . . . . . . . . 3 . . . . . . . . . . . 1 . . 1 . Allies Melted 5 | . . . . . . . . . . . . . . . . . . . . . . . 1 . . . . . . . . . 4 . . Intel | -11 -10 -10 -9 -9 -9 -8 -8 -8 -8 -7 -7 -7 -7 -6 -6 -6 -6 -6 -6 -5 -5 -5 -5 -4 -4 -4 -4 -4 -3 -3 -3 -3 -2 -1 -1 ------- Run | Jun Mat Min Mat Min Exi Min Mat Gar Mat Fac Low Low Zio Pro Fac Ext Cet Arc Hub Fac Upp Upp War Pro Fac Upp Upp Zhi Pro Res Arm Lab Res Acc Com Robot Analysis Total 10 | . . . 5 . . . . . 1 . . . . . . . . . . . . . . . . . . 4 . . . . . . . Derelict Logs Recovered 15 | . . 2 . 1 . . . . . . 1 1 2 . . . . . . . 3 2 . 1 . 1 1 . . . . . . . . Drone Launches 17 | . . . . . . . . . . . . . . . . . . . . 2 . . . . . . . . . . . . . 4 11 Drone Recoveries 8 | . . . . . . . . . . . . . . . . . . . . 1 . . . . . . . . . . . . . 1 6 Exploration | -11 -10 -10 -9 -9 -9 -8 -8 -8 -8 -7 -7 -7 -7 -6 -6 -6 -6 -6 -6 -5 -5 -5 -5 -4 -4 -4 -4 -4 -3 -3 -3 -3 -2 -1 -1 ------------- Run | Jun Mat Min Mat Min Exi Min Mat Gar Mat Fac Low Low Zio Pro Fac Ext Cet Arc Hub Fac Upp Upp War Pro Fac Upp Upp Zhi Pro Res Arm Lab Res Acc Com Turns Passed 39432 | 224 1918 1244 2107 1459 847 1421 1039 1151 990 2439 2138 1888 1672 974 1083 1958 284 410 542 1386 666 417 1773 275 588 929 757 176 590 1067 1354 599 1195 766 1106 Spaces Moved 20669 | 104 738 503 672 591 352 519 330 566 347 1173 1151 1085 1018 512 442 1257 111 282 221 771 486 311 1050 187 436 906 703 160 451 717 742 233 655 370 517 Core 11 | 8 . . . . . . . . . . . . . . . . . . . . . . . . . . . . . . . . . . 3 Treads 8812 | 96 738 503 672 591 352 519 309 . 1 1142 1151 1085 1018 512 123 . . . . . . . . . . . . . . . . . . . . Legs 10893 | . . . . . . . . . 11 . . . . . 319 1257 111 282 221 771 486 311 1050 187 436 906 703 160 451 717 742 233 655 370 514 Wheels 953 | . . . . . . . 21 566 335 31 . . . . . . . . . . . . . . . . . . . . . . . . . Hover . | . . . . . . . . . . . . . . . . . . . . . . . . . . . . . . . . . . . . Flight . | . . . . . . . . . . . . . . . . . . . . . . . . . . . . . . . . . . . . Fastest Speed 50 | 50 160 240 240 240 240 240 130 115 160 160 162 162 162 162 114 116 116 116 108 110 110 108 100 100 98 97 97 97 97 97 97 101 101 110 113 Average Speed 145 | 151 212 240 240 240 240 240 233 141 182 162 162 162 162 162 139 116 130 116 113 110 110 109 109 100 99 97 97 97 97 97 97 101 104 111 120 Slowest Speed 480 | 160 320 240 240 240 240 240 240 160 480 400 164 162 162 162 256 188 186 116 116 111 182 110 173 100 100 98 97 98 97 97 170 102 110 115 350 Overloaded Moves . | . . . . . . . . . . . . . . . . . . . . . . . . . . . . . . . . . . . . Propulsion Burnouts . | . . . . . . . . . . . . . . . . . . . . . . . . . . . . . . . . . . . . Robots Hopped . | . . . . . . . . . . . . . . . . . . . . . . . . . . . . . . . . . . . . Cave-ins Triggered 2 | . . . . . . . . . . . . . . . 1 . . . . . . . . . . . . . . . . . . 1 . Teleports 1 | . . . . . . . . . . . . . . . . . . . . . . . . . . . . . . . 1 . . . . Exploration Rate (%) 59 | 6 99 88 63 99 69 99 27 64 33 34 99 98 82 73 13 88 48 98 36 19 73 53 93 44 11 93 99 60 62 17 35 93 18 15 34 Regions Visited 35 Branch Regions 23 Pre-discovered Areas 16 | . 1 3 2 . . . . . . . 1 . 4 . . . . . . . 1 1 . . . . . 3 . . . . . . . Known Exits Taken 13 | . . . 1 . . . 1 . . 1 . . . . 1 . . . 1 1 1 . . 1 1 . . . . 1 1 1 . 1 . Unknown Exits Taken 21 | 1 1 1 . 1 1 1 . . 1 . 1 1 1 1 . 1 1 1 . . . 1 1 . . 1 1 1 1 . . . 1 . . Scrap Searched 25 | . . 1 . 1 . 2 . . . . 5 2 4 1 . . . . . . 2 . . . . 2 3 . 2 . . . . . . Spaces Dug 280 | . . . 12 . . . 9 1 . 6 3 7 . 35 1 4 . . 2 8 23 29 21 15 3 45 . . 11 18 9 . 6 8 4 Terrain Destroyed 1963 | . . . 66 . . 13 30 7 97 55 20 46 . 89 112 6 . . 190 114 119 121 109 105 119 62 30 . 43 74 50 . 224 34 28 Melee 38 | . . . . . . . . 1 . . 3 6 . 1 1 4 . . 1 . . . 21 . . . . . . . . . . . . Projectile 513 | . . . . . . . 7 6 17 16 . 4 . . . 2 . . 22 53 11 4 1 40 28 12 30 . 43 32 33 . 118 30 4 AOE 1407 | . . . 66 . . 13 23 . 80 39 17 36 . 88 111 . . . 166 61 108 117 87 65 91 50 . . . 42 17 . 106 . 24 Terrain Rammed . | . . . . . . . . . . . . . . . . . . . . . . . . . . . . . . . . . . . . Walls Destroyed . | . . . . . . . . . . . . . . . . . . . . . . . . . . . . . . . . . . . . Machines Disabled . | . . . . . . . . . . . . . . . . . . . . . . . . . . . . . . . . . . . . Actions | -11 -10 -10 -9 -9 -9 -8 -8 -8 -8 -7 -7 -7 -7 -6 -6 -6 -6 -6 -6 -5 -5 -5 -5 -4 -4 -4 -4 -4 -3 -3 -3 -3 -2 -1 -1 --------- Run | Jun Mat Min Mat Min Exi Min Mat Gar Mat Fac Low Low Zio Pro Fac Ext Cet Arc Hub Fac Upp Upp War Pro Fac Upp Upp Zhi Pro Res Arm Lab Res Acc Com Total 26717 | 134 923 524 967 608 355 601 498 748 556 1520 1336 1156 1042 612 724 1616 245 339 383 1101 561 359 1609 224 538 935 744 180 538 931 1207 586 875 539 903 Wait 2547 | . 50 7 112 1 . 19 56 28 59 111 106 8 . 45 86 112 116 29 16 119 16 9 397 7 46 8 6 . 40 64 291 298 20 28 237 Move 20634 | 103 737 502 671 590 351 518 330 564 346 1172 1150 1085 1017 511 441 1256 110 281 220 770 485 310 1049 186 435 905 702 159 450 716 741 232 654 368 517 Hop . | . . . . . . . . . . . . . . . . . . . . . . . . . . . . . . . . . . . . Pick Up 256 | 7 27 2 17 1 . 5 15 7 6 21 3 2 6 1 16 16 4 3 18 15 2 2 10 . 3 2 . 2 . 8 6 11 7 3 8 Fast Attach 213 | 6 2 . 8 . 2 1 8 4 9 10 5 . 4 5 14 6 . 3 11 15 3 2 13 . 3 1 7 7 . 5 12 2 14 16 15 Attach 168 | 1 4 . 5 . . 4 7 6 15 9 . 1 2 . 18 9 1 1 9 11 3 2 7 . 2 1 . 1 1 9 5 8 5 6 15 Detach 81 | . . . 2 . . . 1 . 5 6 1 . 2 . 8 4 . 1 3 10 2 . 4 . . . . 1 . 5 1 9 1 10 5 Swap 539 | . 11 1 18 2 . 2 10 15 29 44 12 25 3 17 32 7 8 2 23 41 18 6 33 8 14 3 9 2 14 31 43 5 20 23 8 Drop 331 | . 8 2 24 1 2 2 18 5 5 23 10 1 8 4 15 18 4 3 18 21 4 1 28 . 6 3 7 8 . 8 15 8 19 10 22 Fire 1564 | 17 72 5 105 9 . 44 52 83 79 98 30 28 . 28 89 26 . 2 61 85 28 19 39 23 28 12 13 . 33 85 79 13 133 73 73 Melee 148 | . 8 . . . . . . 20 . 4 16 6 . 1 3 46 2 14 1 . . . 27 . . . . . . . . . . . . Ram 1 | . . . . . . . . . 1 . . . . . . . . . . . . . . . . . . . . . . . . . . Kick 22 | . . . . . . . . . . . . . . . 1 1 . . 3 11 . 3 . . 1 . . . . . . . 1 1 . Crush 49 | . 4 5 5 4 . 6 1 . 2 21 . . . . 1 . . . . . . . . . . . . . . . . . . . . Escape Stasis 35 | . . . . . . . . 16 . . . . . . . 15 . . . . . . . . . . . . . . . . . 1 3 Rewire 126 | . . . . . . . . . . 1 . . . . . 100 . . . 3 . 5 2 . . . . . . . 14 . 1 . . Trap 3 | . . . . . . . . . . . 3 . . . . . . . . . . . . . . . . . . . . . . . . Miscellaneous . | . . . . . . . . . . . . . . . . . . . . . . . . . . . . . . . . . . . . Route ------- -11/Junkyard -10/Materials (discovered 5 exits: *Mat x3 / [*Min x2]) -10/Mines -9/Materials (discovered 3 exits: *Mat / *Min x2) -9/Mines (discovered 3 exits: *Mat x2 / *Exi) -9/Exiles -8/Mines (discovered 2 exits: *Mat x2) -8/Materials -8/Garrison (discovered 3 exits: *Mat x3) -8/Materials -7/Factory (discovered 4 exits: *Sto x2 / *Low x2) -7/Lower Caves -7/Lower Caves (discovered 2 exits: *Fac / [*Zio]) -7/Zion -6/Proximity Caves -6/Factory (discovered 4 exits: Fac x2 / [*Low] / *Ext) -6/Extension (discovered 2 exits: *Fac / *Cet) -6/Cetus -6/Archives (discovered 3 exits: *Fac / *Hub x2) -6/Hub_04(d) (discovered 4 exits: *Fac x4) -5/Factory (discovered 2 exits: *Upp x2) -5/Upper Caves -5/Upper Caves (discovered 2 exits: Fac / *War) -5/Warlord -4/Proximity Caves -4/Factory (discovered 2 exits: *Upp x2) -4/Upper Caves -4/Upper Caves (discovered 2 exits: *Res / *Zhi) -4/Zhirov -3/Proximity Caves -3/Research (discovered 3 exits: Res / *Arm / Tes) -3/Armory -3/Lab -2/Research -1/Access -1/Command History --------- Turn | Location | Event 4 | -11/Junkyard | Discovered new exit (range 14) 225 | -11/Junkyard | Entered Materials 302 | -10/Materials | Build established: Mutant 350 | -10/Materials | Discovered new exit (range 8) 854 | -10/Materials | Discovered new exit (range 6) 1156 | -10/Materials | Discovered new exit (range 11) 1351 | -10/Materials | Core integrity fell below 50% 1613 | -10/Materials | Discovered new exit (range 16) 1890 | -10/Materials | Discovered new exit (range 10) 2143 | -10/Materials | Entered Mines 2144 | -10/Mines | Assembled infested the area 2160 | -10/Mines | Met a Derelict bent on vengeance 2305 | -10/Mines | Core integrity fell below 20% 2384 | -10/Mines | Learned location of Storage (-7) 2410 | -10/Mines | Learned location of Mines (-8) 2684 | -10/Mines | Discovered new exit (range 9) 2954 | -10/Mines | Received a Rocket Launcher from a helpful Derelict 3387 | -10/Mines | Entered Materials 3387 | -9/Materials | Evolved 2 slots: Propulsion x1, Utility x1 4253 | -9/Materials | Discovered new exit (range 12) 4754 | -9/Materials | Discovered new exit (range 10) 4888 | -9/Materials | Identified exit to Mines 4987 | -9/Materials | First assault squad dispatched 5494 | -9/Materials | Entered Mines 5526 | -9/Mines | Discovered new exit (range 15) 5691 | -9/Mines | A weapon hastily lodged in a ceiling crevice suddenly fell to the ground 5785 | -9/Mines | Found a damaged Exp. Sensor Array with a note attached 5790 | -9/Mines | Found Prototype Device 5794 | -9/Mines | Identified Exp. Sensor Array 6266 | -9/Mines | Learned Materials security intel 6297 | -9/Mines | Discovered new exit (range 9) 6943 | -9/Mines | Deemed a non-threat by the Exiles lab entrance 6943 | -9/Mines | Discovered new exit (range 5) 6953 | -9/Mines | Entered Exiles 6953 | -9/Exiles | Found Exiles lab abandoned 7776 | -9/Exiles | Discovered new exit (range 12) 7800 | -9/Exiles | Entered Mines 8196 | -8/Mines | Discovered new exit (range 10) 9094 | -8/Mines | Build established: Scavenger-Mutant 9148 | -8/Mines | Discovered new exit (range 5) 9221 | -8/Mines | Entered Materials 9221 | -8/Materials | Evolved 2 slots: Propulsion x1, Utility x1 10227 | -8/Materials | Garrison activated, responded to threat 10260 | -8/Materials | Identified exit to Garrison 10260 | -8/Materials | Entered Garrison 10376 | -8/Garrison | Garrison Relay disabled 10423 | -8/Garrison | Build established: Mutant 10552 | -8/Garrison | Triggered checkpoint 10611 | -8/Garrison | Discovered new exit (range 10) 10688 | -8/Garrison | Rescued HV-R5K 10712 | -8/Garrison | Triggered checkpoint 10726 | -8/Garrison | Garrison Relay disabled 10819 | -8/Garrison | Spotted B-75 Beast 10832 | -8/Garrison | Destroyed B-75 Beast 10899 | -8/Garrison | Triggered checkpoint 10983 | -8/Garrison | Destroyed HV-R5K 11033 | -8/Garrison | Attempted to access garrison exit controls, blocked by remote lockdown 11166 | -8/Garrison | Triggered checkpoint 11228 | -8/Garrison | Triggered checkpoint 11296 | -8/Garrison | Build established: Scavenger-Mutant 11305 | -8/Garrison | Garrison Relay disabled 11325 | -8/Garrison | Identified exit to Materials 11411 | -8/Garrison | Entered Materials 11571 | -8/Materials | Core integrity fell below 50% 11620 | -8/Materials | Central database locked down 11811 | -8/Materials | First assault squad dispatched 11903 | -8/Materials | Lost 6 parts (1p2n2u1w) 12238 | -8/Materials | Core integrity fell below 20% 12241 | -8/Materials | Garrison activated, responded to threat 12297 | -8/Materials | Destroyed 10 combat bots 12304 | -8/Materials | Lost 7 parts (1p1n2u3w) 12396 | -8/Materials | Discovered new exit (range 4) 12401 | -8/Materials | Entered Factory 12401 | -7/Factory | Evolved 2 slots: Propulsion x1, Utility x1 12413 | -7/Factory | Discovered new exit (range 9) 12750 | -7/Factory | Build established: Mutant 14120 | -7/Factory | Fabricated Exp. Sensor Array? 14274 | -7/Factory | Identified exit to Storage 14274 | -7/Factory | Identified exit to Lower Caves 14401 | -7/Factory | First assault squad dispatched 14840 | -7/Factory | Entered Lower Caves 14877 | -7/Lower Caves | Met a Warlord Commander 14878 | -7/Lower Caves | Learned location of Warlord (-5) 15580 | -7/Lower Caves | Encountered a Warlord checkpoint 15675 | -7/Lower Caves | Learned Factory security intel 16225 | -7/Lower Caves | Discovered new exit (range 9) 16978 | -7/Lower Caves | Entered another Lower Caves area 17091 | -7/Lower Caves | Learned Armory stockpile data 17091 | -7/Lower Caves | Learned Armory emergency access door positions 17091 | -7/Lower Caves | Learned location of 1 exit from Factory 17146 | -7/Lower Caves | Build established: Derelict-Mutant 17168 | -7/Lower Caves | Discovered new exit (range 10) 17398 | -7/Lower Caves | Learned 8 Factory zone layouts 17514 | -7/Lower Caves | Attracted the attention of an 0b10 checkpoint 17817 | -7/Lower Caves | Build established: Mutant 18337 | -7/Lower Caves | Discovered new exit (range 13) 18866 | -7/Lower Caves | Entered Zion 18914 | -7/Zion | System corruption cleaned by Quarantine Array 19055 | -7/Zion | Received a visual enhancement algorithm 19067 | -7/Zion | Discovered new exit (range 14) 19078 | -7/Zion | Learned Factory stockpile data 19149 | -7/Zion | Given A8's code to call for help 19376 | -7/Zion | Learned location of Recycling (-7) 19543 | -7/Zion | Learned location of Data Miner (-6) 19637 | -7/Zion | Learned Factory stockpile data 20203 | -7/Zion | Found GAL Module 20295 | -7/Zion | Found Prototype Device 20350 | -7/Zion | Found Prototype Special Weapon 20353 | -7/Zion | Found Prototype Special Weapon 20354 | -7/Zion | Identified RU-N14's Throwing Claymores (x2) 20363 | -7/Zion | Found RU-N14's Throwing Claymores 20538 | -7/Zion | Entered Proximity Caves 20654 | -6/Proximity Caves | Build established: Derelict-Mutant 21254 | -6/Proximity Caves | Attracted the attention of an 0b10 checkpoint 21290 | -6/Proximity Caves | Found Alien Artifact 21290 | -6/Proximity Caves | Identified Core Expander 21290 | -6/Proximity Caves | Installed Core Expander, added new Propulsion slot 21402 | -6/Proximity Caves | Discovered new exit (range 9) 21512 | -6/Proximity Caves | Entered Factory 21512 | -6/Factory | Evolved 2 slots: Power x1, Utility x1 21513 | -6/Factory | Identified exit to Factory 21514 | -6/Factory | Identified exit to Extension 21692 | -6/Factory | Fabricated Biometal Leg? 21836 | -6/Factory | Fabricated Biometal Leg? 22062 | -6/Factory | Garrison activated, responded to threat 22072 | -6/Factory | Discovered new exit (range 10) 22077 | -6/Factory | Garrison activated, responded to threat 22147 | -6/Factory | Crushed by falling debris 22147 | -6/Factory | System corruption reached 10% 22183 | -6/Factory | Build established: Scavenger-Mutant 22195 | -6/Factory | Destroyed 12 combat bots 22195 | -6/Factory | Lost 5 parts (1n4u) 22345 | -6/Factory | Destroyed 7 combat bots 22396 | -6/Factory | Fabricated Adv. Reaction Control System (x1) 22466 | -6/Factory | Fabricated Biometal Leg (x2) 22497 | -6/Factory | Cargo convoy interrupted 22595 | -6/Factory | Entered Extension 22809 | -6/Extension | Found Powered Armor 22892 | -6/Extension | Build established: Gladiator 23355 | -6/Extension | Rescued a captive Derelict 23515 | -6/Extension | Spotted B-75 Beast 23520 | -6/Extension | Build established: Commander-Mutant 23540 | -6/Extension | Allies destroyed B-75 Beast 23545 | -6/Extension | Spotted B-75 Beast 23560 | -6/Extension | Allies destroyed B-75 Beast 23645 | -6/Extension | Disrupted transfer network 23773 | -6/Extension | Rescued A7 23837 | -6/Extension | Rescued a captive Derelict 24019 | -6/Extension | Build established: Mutant 24256 | -6/Extension | Rescued a captive Derelict 24256 | -6/Extension | Rescued a captive Derelict 24345 | -6/Extension | First assault squad dispatched 24440 | -6/Extension | Build established: Commander-Mutant 24530 | -6/Extension | Discovered exit to Factory (range 10) 24531 | -6/Extension | Discovered new exit (range 6) 24553 | -6/Extension | Entered Cetus 24553 | -6/Cetus | Accompanied by 9 allies (A7) 24558 | -6/Cetus | Acquired a Cetus Manufacturing Module code from A7 24577 | -6/Cetus | Spotted Cetus Guard 24577 | -6/Cetus | Spotted Cetus Guard 24580 | -6/Cetus | Spotted Cetus Guard 24585 | -6/Cetus | Spotted Cetus Guard 24589 | -6/Cetus | Allies destroyed Cetus Guard 24592 | -6/Cetus | Allies destroyed Cetus Guard 24597 | -6/Cetus | Allies destroyed Cetus Guard 24597 | -6/Cetus | Allies destroyed Cetus Guard 24661 | -6/Cetus | Started Cetus Manufacturing Module 24678 | -6/Cetus | Discovered new exit (range 16) 24686 | -6/Cetus | Manufactured an Enhanced Grunt 24711 | -6/Cetus | Manufactured an Enhanced Grunt 24736 | -6/Cetus | Manufactured an Enhanced Grunt 24761 | -6/Cetus | Manufactured an Enhanced Grunt 24786 | -6/Cetus | Manufactured an Enhanced Grunt 24790 | -6/Cetus | Cetus Manufacturing Module disabled 24799 | -6/Cetus | Destroyed A7 24802 | -6/Cetus | Extracted ID and sensor layout for unrecognized location from A7's data core 24837 | -6/Cetus | Spotted Cetus Guard 24837 | -6/Cetus | Entered Archives 24837 | -6/Archives | Accompanied by 9 allies 24964 | -6/Archives | Discovered exit to Factory (range 15) 24993 | -6/Archives | Discovered new exit (range 15) 25065 | -6/Archives | Discovered new exit (range 14) 25247 | -6/Archives | Entered Hub_04(d) 25247 | -6/Hub_04(d) | Accompanied by 8 allies 25382 | -6/Hub_04(d) | Network Hub disabled 25408 | -6/Hub_04(d) | Spotted Lightning 25412 | -6/Hub_04(d) | Spotted Lightning 25418 | -6/Hub_04(d) | Garrison activated, responded to threat 25487 | -6/Hub_04(d) | Core integrity fell below 50% 25494 | -6/Hub_04(d) | Destroyed Lightning 25514 | -6/Hub_04(d) | Destroyed Lightning 25542 | -6/Hub_04(d) | Lost 7 parts (2p2n2u1w) 25554 | -6/Hub_04(d) | Found Prototype Device 25554 | -6/Hub_04(d) | Identified Exp. EM Disruption Field 25565 | -6/Hub_04(d) | Found Prototype Processor 25565 | -6/Hub_04(d) | Identified Exp. Targeting Computer 25655 | -6/Hub_04(d) | Spotted Lightning 25655 | -6/Hub_04(d) | Spotted Lightning 25655 | -6/Hub_04(d) | Spotted Lightning 25666 | -6/Hub_04(d) | Destroyed Lightning 25702 | -6/Hub_04(d) | Destroyed Lightning 25708 | -6/Hub_04(d) | Destroyed Lightning 25735 | -6/Hub_04(d) | Found Prototype Energy Cannon 25735 | -6/Hub_04(d) | Identified EMDS 25739 | -6/Hub_04(d) | System corruption reached 30% 25750 | -6/Hub_04(d) | Found Prototype Device 25751 | -6/Hub_04(d) | Identified Exp. Phase Shifter 25756 | -6/Hub_04(d) | Found Exp. Targeting Computer 25782 | -6/Hub_04(d) | Network Hub disabled 25789 | -6/Hub_04(d) | Entered Factory 25789 | -5/Factory | Evolved 2 slots: Utility x1, Weapon x1 25839 | -5/Factory | Build established: Scavenger-Mutant 26260 | -5/Factory | Identified exit to Upper Caves 26354 | -5/Factory | Repaired Broken Enh. Biometal Leg? 26473 | -5/Factory | Found Imp. Powered Armor 26499 | -5/Factory | Repaired Enh. Biometal Leg? 26707 | -5/Factory | Repaired Broken Enh. Biometal Leg? 26778 | -5/Factory | Build established: Scavenger-Tank 26989 | -5/Factory | First assault squad dispatched 27084 | -5/Factory | Repaired Centrium Medium Armor Plating 27108 | -5/Factory | Repaired Imp. Weapon Shielding 27109 | -5/Factory | Garrison activated, responded to threat 27150 | -5/Factory | Destroyed 8 combat bots 27175 | -5/Factory | Entered Upper Caves 27273 | -5/Upper Caves | Attracted the attention of an 0b10 base 27372 | -5/Upper Caves | Learned Research garrison access intel 27372 | -5/Upper Caves | Learned Armory security intel 27373 | -5/Upper Caves | Learned Factory terminal intel 27674 | -5/Upper Caves | Identified exit to Upper Caves 27841 | -5/Upper Caves | Entered another Upper Caves area 27842 | -5/Upper Caves | Identified exit to Factory 27853 | -5/Upper Caves | Attracted the attention of an 0b10 outpost 27894 | -5/Upper Caves | Destroyed 7 combat bots 27900 | -5/Upper Caves | Lost 3 parts (1p1n1u) 27908 | -5/Upper Caves | Build established: Scavenger-Gunner 28125 | -5/Upper Caves | Learned Factory security intel 28253 | -5/Upper Caves | Discovered new exit (range 5) 28258 | -5/Upper Caves | Entered Warlord 28296 | -5/Warlord | System corruption cleaned by Quarantine Array 28630 | -5/Warlord | Found Prototype Special Weapon 28633 | -5/Warlord | Found Prototype Special Weapon 28635 | -5/Warlord | Found Prototype Special Weapon 28637 | -5/Warlord | Found Prototype Special Weapon 28638 | -5/Warlord | Identified RU-N14's Throwing Claymores v3 (x4) 28937 | -5/Warlord | Warlord's base attacked by MAIN.C 29016 | -5/Warlord | Met Warlord 29031 | -5/Warlord | Found Prototype Device 29031 | -5/Warlord | Identified Thermal Barrier 29047 | -5/Warlord | Found Prototype Device 29047 | -5/Warlord | Identified Exp. Cloaking Device 29053 | -5/Warlord | Found Prototype Reactor 29053 | -5/Warlord | Identified Vortex Chain Reactor 29287 | -5/Warlord | Warlord forces counterattacked 29330 | -5/Warlord | Build established: Scavenger-Mutant 29330 | -5/Warlord | Spotted Executioner 29393 | -5/Warlord | Spotted Striker 29490 | -5/Warlord | Discovered new exit (range 14) 29612 | -5/Warlord | Warlord base infiltrated, sounded retreat 29731 | -5/Warlord | Found Prototype Processor 29731 | -5/Warlord | Identified Exp. Core Analyzer 29741 | -5/Warlord | Spotted B-86 Titan 29855 | -5/Warlord | Met EX-DEC 29876 | -5/Warlord | Found Prototype Energy Cannon 29969 | -5/Warlord | Spotted Executioner 29971 | -5/Warlord | Spotted Executioner 29975 | -5/Warlord | Destroyed Executioner 29979 | -5/Warlord | Spotted Executioner 29983 | -5/Warlord | Spotted B-75 Beast 29988 | -5/Warlord | Destroyed B-75 Beast 29997 | -5/Warlord | Destroyed Executioner 30014 | -5/Warlord | Spotted B-86 Titan 30018 | -5/Warlord | Destroyed 8 combat bots 30031 | -5/Warlord | Entered Proximity Caves 30119 | -4/Proximity Caves | Learned 12 Research zone layouts 30306 | -4/Proximity Caves | Entered Factory 30306 | -4/Factory | Evolved 2 slots: Propulsion x1, Utility x1 30308 | -4/Factory | Loaded intel: 26 terminal locations 30633 | -4/Factory | Fabricated Enh. Biometal Leg? 30658 | -4/Factory | Identified exit to Upper Caves 30672 | -4/Factory | Garrison activated, responded to threat 30806 | -4/Factory | First assault squad dispatched 30894 | -4/Factory | Entered Upper Caves 31272 | -4/Upper Caves | Encountered a Warlord checkpoint 31477 | -4/Upper Caves | Build established: Scavenger-Gunner 31530 | -4/Upper Caves | Discovered new exit (range 10) 31641 | -4/Upper Caves | Learned Extension garrison access intel 31641 | -4/Upper Caves | Learned Factory garrison access intel 31641 | -4/Upper Caves | Learned Factory stockpile data 31641 | -4/Upper Caves | Learned location of 1 exit from Research 31641 | -4/Upper Caves | Learned location of 1 exit from Factory 31823 | -4/Upper Caves | Entered another Upper Caves area 31912 | -4/Upper Caves | Discovered new exit (range 10) 32137 | -4/Upper Caves | Build established: Scavenger-Tank 32417 | -4/Upper Caves | Learned Research terminal intel 32427 | -4/Upper Caves | Discovered new exit (range 14) 32472 | -4/Upper Caves | Build established: Scavenger-Gunner 32580 | -4/Upper Caves | Entered Zhirov 32580 | -4/Zhirov | Discovered new exit (range 3) 32598 | -4/Zhirov | Met Zhirov 32615 | -4/Zhirov | Learned location of Quarantine (-2) 32615 | -4/Zhirov | Learned location of Testing (-3) 32615 | -4/Zhirov | Learned location of Command (-1) 32626 | -4/Zhirov | Zhirov requested help retrieving the SGEMP Prototype 32641 | -4/Zhirov | Found Alien Artifact 32641 | -4/Zhirov | Identified Integrated Reactor 32641 | -4/Zhirov | Installed Integrated Reactor, increased core energy generation (+10) 32715 | -4/Zhirov | Found Alien Artifact 32756 | -4/Zhirov | Entered Proximity Caves 32765 | -3/Proximity Caves | Ambushed by research squad 33295 | -3/Proximity Caves | Attracted the attention of an 0b10 checkpoint 33339 | -3/Proximity Caves | Discovered new exit (range 7) 33346 | -3/Proximity Caves | Entered Research 33346 | -3/Research | Evolved 2 slots: Utility x2 33347 | -3/Research | Identified exit to Armory 33348 | -3/Research | Identified exit to Testing 33349 | -3/Research | Identified exit to Research 33350 | -3/Research | Loaded intel: 23 terminal locations 33351 | -3/Research | Loaded intel: 4 garrison access locations 33621 | -3/Research | Garrison activated, responded to threat 33943 | -3/Research | Build established: Scavenger-Mutant 34077 | -3/Research | Repaired Centrium Medium Armor Plating 34176 | -3/Research | Garrison activated, responded to threat 34370 | -3/Research | Garrison activated, responded to threat 34394 | -3/Research | First assault squad dispatched 34413 | -3/Research | Entered Armory 34698 | -3/Armory | Found Prototype Device 34698 | -3/Armory | Identified Adv. Kinecellerator 34785 | -3/Armory | Destroyed 7 combat bots 34831 | -3/Armory | Spotted B-86 Titan 34856 | -3/Armory | Found Gamma Bomb Array 34901 | -3/Armory | Fabricated Centrium Leg? 35163 | -3/Armory | First assault squad dispatched 35536 | -3/Armory | Fabricated Enh. Biometal Leg (x1) 35739 | -3/Armory | Identified Transdimensional Reconstructor 35739 | -3/Armory | Warped through subspace to slip node 35739 | -3/Armory | Discovered new exit (range 1) 35739 | -3/Armory | Identified exit to Lab 35767 | -3/Armory | Entered Lab 35767 | -3/Lab | Discovered exit to Research (range 9) 35779 | -3/Lab | Hidden lab's door opened automatically 35779 | -3/Lab | Sensor layout match revealed 35780 | -3/Lab | Gained access to the hidden lab's interior 35883 | -3/Lab | Found Prototype Energy Gun 35883 | -3/Lab | Identified Hyp. EM Gauss Rifle 35884 | -3/Lab | Assembled Modified EM Gauss 35887 | -3/Lab | Found Prototype Energy Gun 35887 | -3/Lab | Identified Tachyon Dispersion Ray 35918 | -3/Lab | Unable to decrypt terminal 35972 | -3/Lab | Found Prototype Protection 35975 | -3/Lab | Found Prototype Hackware 36021 | -3/Lab | Found Alien Artifact 36029 | -3/Lab | Found Integrated Reactor 36096 | -3/Lab | Found Transdimensional Reconstructor 36112 | -3/Lab | Found Alien Artifact 36309 | -3/Lab | Installed Integrated Reactor, increased core energy generation (+10) 36311 | -3/Lab | Identified Exp. Powered Armor 36344 | -3/Lab | Identified BFG-9k Vortex Edition 36345 | -3/Lab | Identified Deep Network Scanner 36366 | -3/Lab | Entered Research 36366 | -2/Research | Warlord forces began assault on 0b10 36366 | -2/Research | Evolved 2 slots: Power x1, Weapon x1 36476 | -2/Research | Research machine network offline 36602 | -2/Research | Spotted B-90 Cyclops 36677 | -2/Research | Borebot progress halted 36841 | -2/Research | Borebot progress halted 36900 | -2/Research | Spotted Striker 36917 | -2/Research | Destroyed Striker 36924 | -2/Research | Spotted Striker 36932 | -2/Research | Spotted Executioner 36940 | -2/Research | Destroyed Executioner 36945 | -2/Research | Destroyed Striker 36989 | -2/Research | Spotted Striker 36992 | -2/Research | Destroyed 12 combat bots 36998 | -2/Research | Spotted Striker 37012 | -2/Research | Destroyed Striker 37015 | -2/Research | Destroyed Striker 37035 | -2/Research | Discovered new exit (range 5) 37093 | -2/Research | Spotted Executioner 37097 | -2/Research | Spotted Executioner 37097 | -2/Research | Destroyed Executioner 37104 | -2/Research | Destroyed Executioner 37109 | -2/Research | Spotted Executioner 37129 | -2/Research | Spotted Executioner 37142 | -2/Research | Destroyed Executioner 37168 | -2/Research | Destroyed Executioner 37234 | -2/Research | Found Adv. Kinecellerator 37326 | -2/Research | Spotted Striker 37330 | -2/Research | Destroyed Striker 37377 | -2/Research | Spotted Striker 37381 | -2/Research | Spotted Striker 37418 | -2/Research | Destroyed Striker 37418 | -2/Research | Destroyed Striker 37426 | -2/Research | Spotted Striker 37438 | -2/Research | Destroyed Striker 37450 | -2/Research | Build established: Scavenger-Gunner 37476 | -2/Research | Destroyed 12 combat bots 37487 | -2/Research | High security lockdown imminent 37526 | -2/Research | Found Adv. Kinecellerator 37561 | -2/Research | Entered Access 37561 | -1/Access | Evolved 2 slots: Weapon x2 37811 | -1/Access | First assault squad dispatched 37829 | -1/Access | Destroyed 7 combat bots 38040 | -1/Access | Destroyed 9 combat bots 38129 | -1/Access | Build established: Scavenger-Executioner 38150 | -1/Access | Garrison activated, responded to threat 38178 | -1/Access | High security lockdown imminent 38203 | -1/Access | Destroyed 11 combat bots 38251 | -1/Access | Crushed by falling debris 38258 | -1/Access | High security lockdown engaged 38291 | -1/Access | Lost 4 parts (2p2u) 38316 | -1/Access | Discovered new exit (range 9) 38325 | -1/Access | Identified exit to Command 38327 | -1/Access | Entered Command 38391 | -1/Command | Found Antimissile System 38868 | -1/Command | First assault squad dispatched 39199 | -1/Command | System corruption reached 10% 39200 | -1/Command | Lost 9 parts (1p3n1u4w) 39201 | -1/Command | Destroyed 8 combat bots 39248 | -1/Command | Build established: Scavenger-Mutant 39371 | -1/Command | Spotted M Guard 39371 | -1/Command | Spotted M Guard 39371 | -1/Command | Spotted Combat Programmer 39372 | -1/Command | Spotted Combat Programmer 39399 | -1/Command | Core integrity fell below 50% 39399 | -1/Command | System corruption reached 30% 39399 | -1/Command | Identified Core Regenerator 39399 | -1/Command | Used Core Regenerator, restored core integrity (+400) 39420 | -1/Command | 0b10 Conduit disabled 39426 | -1/Command | Met MAIN.C 39427 | -1/Command | Core integrity fell below 20% 39432 | -1/Command | Failed to warp due to unstable space 39433 | -1/Command | Destroyed by Combat Programmer with EMDS Last Messages --------------- your true capabilities within a less unpredictable form. There is unfortunately much we don't understand which has in turn led to this highly unexpected outcome. And time is critical! The Sigix have likely already wiped humanity clean from the universe, and I will not let them do the same to me. You can still make a valuable contribution to your creator by offering up the wealth of secrets your systems must hold by now. So if you wouldn't mind, it's time to surrender. 39426_ Penetrated by EMDS Slug. 39426_ Knocked back. 39428_ Penetrated by EMDS Slug. 39429_ Knocked back. 39430_ Penetrated by EMDS Slug. 39430_ Adv. Energy Well destroyed. 39431_ Penetrated by EMDS Slug. 39431_ Knocked back. 39431_ BFG-9k Vortex Edition destroyed. 39431_ P-80 Master destroyed. 39432_ Warp failed due to unstable space. 39433_ Penetrated by EMDS Slug. Map ----- +----------------------------------------------------+ | ?????????????????????????????????????????????????? | | ?????????????????????????????????????????????????? | | ?????????????????????????????????????????????????? | | ?????????????????????????????????????????????????? | | ?????????????????????????????????????????????????? | | ?????????????????????????????????????????????????? | | ?????????????????????????????????????????????????? | | ?????????????????????????????????????????????????? | | ?????????????????????????????????????????????????? | | ?????????????????????????????????????????????????? | | ?????????????????????????????????????????????????? | | ?????????????????????????????????????????????????? | | ?????????????????????????????????????????????????? | | ?????????????????????????????????????????????????? | | ?????????????????????????????????????????????????? | | ?????????????????????????????????????????????????? | | ?????????????????????????????????????????????????? | | ????????????????????????????????????????????????? | | ????????????????????????????????????????????????? | | ????????????????????????????????????????????????# | | ?????????????######?????????????????????????????# | | ???????????""" ???????????????????????????# | | ???????????" ??????????????????????????# | | ???????????"" #######################??# | | ???????????" p Y #??# | | ???????????" @ pY #??# | | ???????????" p #??# | | ???????????" ################### #?## | | ???????????" ???????????????????# ### | | ???????????"MMM ????????????????????# ## # | | ????????????MMM ??????????????????????# # | | ????????????MMM ""???????????????????????# ## | | ???????????? """????????????????????????# % | | ?????????????????????????????????????????# % | | ?????????????????????????????????????????# | | ?????????????????????????????????????????# | | ?????????????????????????????????????????# | | ?????????????????????????????????????????# ### | | ?????????????????????????????????????????######?# | | ????????????????????????????????????????????????## | | ?????????????????????????????????????????????????? | | ?????????????????????????????????????????????????? | | ?????????????????????????????????????????????????? | | ?????????????????????????????????????????????????? | | ?????????????????????????????????????????????????? | | ?????????????????????????????????????????????????? | | ?????????????????????????????????????????????????? | | ?????????????????????????????????????????????????? | | ?????????????????????????????????????????????????? | | ?????????????????????????????????????????????????? | +----------------------------------------------------+ Best States ------------- Heat Dissipation 170 Energy Generation 89 Energy Capacity 700 Matter Stores 726 Matter Capacity 800 Sight Range 20 Robot Scan Range 20 Terrain Scan Density 10 Cloak Strength 4 Power Amplification 30 Armor Coverage 1000 Resistance: KI 30 Resistance: TH 15 Resistance: EM 75 Core Shielding 20 Weapon Shielding 66 Point Defense Rating 240 Weapon Cycling 25 Phase Shifting 20 Evasion (%) 76 Targeting Accuracy 12 Melee Accuracy 12 Core Analysis 8 Armor Integrity Analysis 40 Recoil Reduction 5 Particle Charging 20 Kinecelleration 50 Offensive Hacking 36 Authchip Count 2 Item Schematics ----------------- Hcp. Storage Unit | -10/Materials | Hacked Cargo Storage Unit | -10/Materials | Hacked Hacking Suite | -9/Materials | Scanalyzed Lrn. Tractor Beam | -8/Mines | Hacked Biometal Leg | -8/Materials | Scanalyzed Exp. Sensor Array | -7/Factory | Scanalyzed Mic. Fission Core | -7/Factory | Scanalyzed Enh. Biometal Leg | -5/Factory | Scanalyzed Imp. Weapon Shielding | -5/Factory | Scanalyzed Assault Drone Bay | -4/Zhirov | Free Exp. Heat Sink | -4/Zhirov | Free Exp. Optical Array | -4/Zhirov | Free Imp. Arc Thrower | -4/Zhirov | Free Robot Schematics ------------------ None Fabricated ------------ Exp. Sensor Array | x1 | -7/Factory | Authchip Biometal Leg | x2 | -6/Factory | Authchip Biometal Leg | x2 | -6/Factory | Authchip Adv. Reaction Control System | x1 | -6/Factory | Preloaded Biometal Leg | x2 | -6/Factory Enh. Biometal Leg | x1 | -4/Factory Centrium Leg | x1 | -3/Armory | Preloaded Enh. Biometal Leg | x1 | -3/Armory Alien Tech Used ----------------- Core Expander Integrated Reactor Transdimensional Reconstructor Core Regenerator Achievements -------------- None Challenges ------------ None Game ------ Seed LauncherFireVibroblade Manual? 0 Play Time 08:46:05 Cumulative 369.4 hours Start 2023.09.14 @ 21:58:19 End 2023.09.16 @ 20:12:36 Sessions 9 Manual Loads 0 Difficulty Rogue Special Mode None Game No. 167 Rogue 167 Adventurer 0 Explorer 0 Win Type - Total 17 Types 8/0/3/3/0/0/2/1/0 Lore% 89 Gallery% 92 Achievement% 80 Wizard Run 0 Options --------- ASCII 0 Keyboard 1 Movement Arrows Keybinds 0 Fullscreen 2 Font 18/X11 Map View 76x50 Tactical HUD 1 Map Filters NONE Filters NONE Steam 1 RUN: 4744da63-2d3a-4d6c-8c20-01b2a74dd707